Workbook

Sheet fase 1
D2: PROYECTO :
D3: 3 RA ETAPA DE REGENERACIÓN URBANA DEL ANDADOR Y PLAZA SALVATIERRA, MUNICIPIO DE LORETO, B.C.S.
B6: C A T A L O G O D E C O N C E P T O S
C8: CONCEPTO | D8: UNIDAD | E8: CANTIDAD | F8: P. UNITARIO | G8: IMPORTE
B9: A. GENERAL
B10: A.I. PRELIMINARES
B11: A.I.1 | C11: SUMINISTRO E INSTALACION DE LETRERO ALUSIVO A LA OBRA DE 2.50 X 1.50 MTS., ELABORADO CON PTR DE 1 1/2" CAL. 18 Y LONA VULCANIZABLE CON OJILLOS A CADA 15 CMS. SEGÚN CROQUIS, INCLUYE:PLANO INTEGRAL, PERSPECTIVAS, CIMENTACION, MATERIALES, MANO DE OBRA, LIMPIEZA Y TODO LO NECESARIO PARA LA CORRECTA EJECUCIÓN DE LOS TRABAJOS. | D11: LTE | E11: 1
B12: A.I.2 | C12: DEMOLICIONES Y RETIRO DE PAVIMENTO A BASE DE ADOQUIN DE 10 CMS DE ESPESOR APROX.INCLUYE:ACOPIO, RETIRO DEL PRODUCTO DE LA DEMOLICION, MANO DE OBRA, HERRAMIENTA Y EQUIPO PARA LA DEMOLICION. | D12: M2 | E12: 2000
B13: A.I.3 | C13: DEMOLICION Y RETIRO DE PIEDRA BOLA DE 10 CMS DE ESPESOR APROXIMADAMANTE, INCLUYE: ACOPIO, RETIRO DEL PRODUCTO DE LA DEMOLICION, MANO DE OBRA, HERRAMIENTA Y EQUIPO PARA LA DEMOLICION. | D13: M2 | E13: 660.8
B14: A.I.4 | C14: DEMOLICION Y RETIRO DE BANQUETA DE CONCRETO ESTAMPADO DE 10cm ESPESOR. INCLUYE: ACOPIO, RETIRO DEL PRODUCTO DE LA DEMOLICION, MANO DE OBRA, HERRAMIENTA Y EQUIPO PARA LA DEMOLICION. | D14: M2 | E14: 500
B15: A.I.5 | C15: DEMOLICION Y RETIRO DE GUARNICION TIPO PECHO DE PALOMA DE CONCRETO, INCLUYE: ACOPIO, RETIRO DEL PRODUCTO DE LA DEMOLICION, MANO DE OBRA, HERRAMIENTA Y EQUIPO PARA LA DEMOLICION. | D15: ML | E15: 38
B16: A.I.6 | C16: DEMOLICIONES Y RETIRO DE PAVIMENTO A BASE DE PIEDRA LAJA NEGRA.INCLUYE:ACOPIO, RETIRO DEL PRODUCTO DE LA DEMOLICION, MANO DE OBRA, HERRAMIENTA Y EQUIPO PARA LA DEMOLICION. | D16: M2 | E16: 217.75
B17: A.I.7 | C17: DEMOLICION Y RETIRO DE MURO DE PIEDRA DE LA REGION DE SECCION DE 80CM ALTURA X 30CMS. ANCHO, INCLUYE: ACOPIO, RETIRO DEL PRODUCTO DE LA DEMOLICION, MANO DE OBRA, HERRAMIENTA Y EQUIPO PARA LA DEMOLICION. | D17: M3 | E17: 14
B18: A.I.8 | C18: DEMOLICION Y RETIRO DE BANCA A BASE DE MURO DE BLOCK Y LOSA DE CONCRETO DE 5cm. ESPESOR SECCION DE 3.50x0.30M. INCLUYE: ACOPIO, RETIRO DEL PRODUCTO DE LA DEMOLICION, MANO DE OBRA, HERRAMIENTA Y EQUIPO PARA LA DEMOLICION. | D18: PZA | E18: 10
B19: A.I.9 | C19: DEMOLICIÓN DE BASE PARA BUSTO DEL GRAL. JUAN M.SALVATIERRA DE SECCION DE 1.10X1.10X01.50 MTS . INCLUYE: ACOPIO, RETIRO DEL PRODUCTO DE LA DEMOLICION, MANO DE OBRA, HERRAMIENTA Y EQUIPO PARA LA DEMOLICION. | D19: PZA | E19: 1
B20: A.I.10 | C20: RETIRO, RESGUARDO Y REUBICACIÓN DE BUSTO DEL GRAL. JUAN M.SALVATIERRA INCLUYE: MANO DE OBRA, HERRAMIENTA Y EQUIPO PARA LA DEMOLICION. | D20: PZA | E20: 1
B21: A.I.11 | C21: RETIRO Y REUBICACIÓN DE MACETERA DE BARRO DE 0.60 A 1.20 MTS. DE ALTURA, INCLUYE: ACARREOS, MANO DE OBRA, EQUIPO Y HERRAMIENTA. | D21: PZA | E21: 6
B22: A.I.12 | C22: RETIRO Y RESGUARDO DE LUMINARIAS DEL ALUMBRADO PUBLICO DE 14 A 5M DE ALTURA, INCLUYE: DESMONTAJE DE LAMPARA, CABLEADO, DEMOLICION DE BASE DE CONCRETO, REGISTRO A BASE DE BLOCK, MANO DE OBRA, EQUIPO Y HERRAMIENTA. | D22: PZA | E22: 8
B23: A.I.13 | C23: DEMOLICION DE REGISTRO SANITARIOS A BASE DE BLOCK DE 40 CMS X 60 CMS DE SECCION, INCLUYE: ACOPIO Y RETIRO DEL PRODUCTO DE LA DEMOLICION AL SITIO DE TIRO DE LA CIUDAD, RETIRO DE TUBERIAS, MANO DE OBRA, HERRAMIENTA Y EQUIPO. | D23: PZA | E23: 10
B24: A.I.14 | C24: DEMOLICION DE REGISTRO TELMEX A BASE DE BLOCK. INCLUYE: ACOPIO Y RETIRO DEL PRODUCTO DE LA DEMOLICION AL SITIO DE TIRO DE LA CIUDAD, RETIRO DE TUBERIAS, MANO DE OBRA, HERRAMIENTA Y EQUIPO. | D24: PZA | E24: 2
B25: A.I.15 | C25: RETIRO Y REUBICACION DE POSTE DE TELMEX INCLUYE: , ACOPIO Y RETIRO DEL PRODUCTO DE LA DEMOLICION AL SITIO DE TIRO DE LA CIUDAD, RETIRO DE CABELEADO, TUBERIAS, MANO DE OBRA, HERRAMIENTA Y EQUIPO. | D25: PZA | E25: 2
B26: A.I.16 | C26: DEMOLICION DE REGISTRO ELECTRICO A BASE DE BLOCK. INCLUYE: ACOPIO Y RETIRO DEL PRODUCTO DE LA DEMOLICION AL SITIO DE TIRO DE LA CIUDAD, RETIRO DE TUBERIAS, MANO DE OBRA, HERRAMIENTA Y EQUIPO. | D26: PZA | E26: 2
B27: A.I.17 | C27: RETIRO Y REUBICACION DE POSTE DE CFE, INCLUYE: , ACOPIO Y RETIRO DEL PRODUCTO DE LA DEMOLICION AL SITIO DE TIRO DE LA CIUDAD, RETIRO DE CABELEADO, TUBERIAS, MANO DE OBRA, HERRAMIENTA Y EQUIPO. | D27: PZA | E27: 1
B28: A.I.18 | C28: RETIRO DE SEÑALAMIENTO VIAL. INCLUYE: ACOPIO, RETIRO DEL PRODUCTO DE LA DEMOLICION, MANO DE OBRA, HERRAMIENTA Y EQUIPO PARA LA DEMOLICION. | D28: PZA | E28: 1
B29: A.I.19 | C29: DEMOLICION Y RETIRO DE ACOMETIDA ELECTRICA. INCLUYE: ACOPIO, RETIRO DEL PRODUCTO DE LA DEMOLICION, MANO DE OBRA, HERRAMIENTA Y EQUIPO PARA LA DEMOLICION. | D29: PZA | E29: 2
B30: A.I.20 | C30: DEMOLICION DE ESCALINATAS. A BASE DE ESCALONES RECUBIERTOS DE PIEDRA NEGRA DE LA REGION INCLUYE: DEMOLICION, ACOPIO, RETIRO DEL PRODUCTO DE LA DEMOLICION, MANO DE OBRA, HERRAMIENTA Y EQUIPO PARA LA DEMOLICION. | D30: M2 | E30: 25
B31: A.I.21 | C31: RETIRO Y REUBICACIÓN DE LETRERO CONMEMORATIVO A LA MISION DE LORETO . INCLUYE: ACOPIO, RETIRO DEL PRODUCTO DE LA DEMOLICION, MANO DE OBRA, HERRAMIENTA Y EQUIPO PARA LA DEMOLICION. | D31: PZA | E31: 1
B32: A.I.22 | C32: RETIRO Y REUBICACIÓN DE LETRERO TURISTICO A LA MISION DE LORETO . INCLUYE: ACOPIO, RETIRO DEL PRODUCTO DE LA DEMOLICION, MANO DE OBRA, HERRAMIENTA Y EQUIPO PARA LA DEMOLICION. | D32: PZA | E32: 1
B33: A.I.23 | C33: RETIRO Y REUBICACIÓN DE ARBOLES DE 1 A 4 MTS. DE ALTURA, INCLUYE: MANO DE OBRA, EQUIPO, TRANSPLANTA FUERA DE LA OBRA, ENRAISADORES, FERTILIZANTES, GRUAS SI ES NECESARIA, Y HERRAMUENTA | D33: PZA | E33: 8
B34: A.I.24 | C34: RETIRO Y REUBICACIÓN DE PALMERA. DE ALTURA, INCLUYE: MANO DE OBRA, EQUIPO, TRANSPLANTA FUERA DE LA OBRA, ENRAISADORES, FERTILIZANTES, GRUAS SI ES NECESARIA, Y HERRAMUENTA | D34: PZA | E34: 2
B35: A.I.25 | C35: SEÑALAMIENTO PREVENTIVO, A BASE DE POSTES PARA DELIMITAR DE 1.20 MTS DE ALTURA, COLOR NARANJA Y CON BASE DE CAUCHO, INCLUYE: CINTA BLANCA AUTOREFLEJANTES NECESARIA PARA DELIMITAR EL ÁREA REQUERIDA, ARGOLLA SUPERIOR PARA CINTA, CINTA AMARILLA CON LA LEYENDA DE PRECAUCIÓN, TRASLADOS, CARGA Y DESCARGAS, ACOMODOS EN TODO EL TRAMO, MANO DE OBRA Y TODO LO NECESARIO PARA SU CORRECTA EJECUCIÓN. | D35: PZA | E35: 10
B36: A.I.26 | C36: SUMINISTRO Y COLOCACION DE TAPIALES PARA PROTECCION DE OBRA, A BASE DE POSTES DE MADERA DE PINO Y TRIPLAY DE MADERA DE PINO Y LONA VULCANIZABLE CON GRAFICOS DE ACUERDO A LA ZONA, INCLUYE: EQUIPO, HERRAMIENTA, MAQUINARIA, MANO DE OBRA, LIMPIEZA Y TODO LO NECESARIO PARA LA CORRECTA EJECUCIÓN DE LOS TRABAJOS. P.U.O.T. | D36: ML | E36: 200
B37: A.I.27 | C37: DESCABECE DE MURO DE PIEDRA. INCLUYE: ACOPIO, RETIRO DEL PRODUCTO DE LA DEMOLICION, MANO DE OBRA, HERRAMIENTA Y EQUIPO PARA LA DEMOLICION. | D37: M3 | E37: 10
B38: A.I.28 | C38: DEMOLICION DE ESCALINATAS Y RAMPAS EXISTENTES A BASE DE PIEDRA. INCLUYE: ACOPIO, RETIRO DEL PRODUCTO DE LA DEMOLICION, MANO DE OBRA, HERRAMIENTA Y EQUIPO PARA LA DEMOLICION. | D38: M3 | E38: 25
C39: SUB TOTAL : PRELIMINARES | S39: 2.31 | T39: 2 | U39: =T39*S39 -> 4.62
B40: A.II. | C40: II.-SANEAMIENTO DE AGUA POTABLE
B41: A.II.01 | C41: EXCAVACIÓN POR MEDIOS MECANICOS, EN ZANJAS, EN TERRENO CON CUALQUIER CLASIFICACION Y PROFUNDIDAD EN PRESENCIA DE AGUA O EN SECO, RETIRO DEL MATERIAL HASTA 4 M DE DISTANCIA HORIZONTAL, EL PRECIO UNITARIO INCLUYE: TRAZO Y NIVELACION, EQUIPO DE BOMBEO PARA ACHIQUE, OBRAS DE PROTECCION DE TALUDES DE ZANJA, TRASPALEO, SEÑALAMIENTO PREVENTIVO, LA MANO DE OBRA PARA EL APOYO EN LAS OPERACIONES MECÁNICAS, AFINE DE TALUDES Y FONDO DE ZANJA, LIMPIEZA, LA MAQUINARIA, HERRAMIENTA Y EL EQUIPO NECESARIOS PARA LA CORRECTA EJECUCIÓN DE LOS TRABAJOS. PUOT | D41: M3 | E41: 165
B42: A.II.02 | C42: EXCAVACIÓN POR MEDIOS MANUALES, EN ZANJAS, EN TERRENO TIPO 2 , RETIRO DEL MATERIAL HASTA 4 M DE DISTANCIA HORIZONTAL, EL PRECIO UNITARIO INCLUYE: TRAZO Y NIVELACION, OBRAS DE PROTECCION DE TALUDES DE ZANJA, TRASPALEO, SEÑALAMIENTO PREVENTIVO, AFINE DE TALUDES Y FONDO DE ZANJA, LIMPIEZA, LA MANO DE OBRA, EQUIPO Y HERRAMIENTA NECESARIOS PARA LA CORRECTA EJECUCIÓN DE LOS TRABAJOS. PUOT. | D42: M3 | E42: 47
B43: A.II.03 | C43: CONSTRUCCION Y FORMACION DE FILTRO CAPA DE 30cm. PARA CONTROLAR EL NIVEL FREATICO, EN EL LECHO BAJO DE TUBERIAS, COMO CAPA ROMPEDORA DE CAPILARIDAD, CON MATERIAL PETREO (FRAGMENTOS DE ROCA Y GRAVA), TAMAÑO MAXIMO DE 3/4" A 1 1/2", PARCIALMENTE TRITURADO, PROVENIENTE DE BANCO QUE CUMPLAN CON LAS ESPECIFICACIONES VIGENTES. INCLUYE: ACARREOS DENTRO DE LA OBRA, TENDIDO Y ACOMODO POR CAPAS, LOS MATERIALES, MANO DE OBRA, HERRAMIENTA Y EQUIPO NECESARIO. | D43: M3 | E43: 62
B44: A.II.04 | C44: CONSTRUCCION Y FORMACION DE FILTRO CAPA DE 15cm. PARA CONTROLAR EL NIVEL FREATICO, EN EL LECHO BAJO DE TUBERIAS, COMO CAPA ROMPEDORA DE CAPILARIDAD, CON ARENA DE ARROYO, PROVENIENTE DE BANCO QUE CUMPLAN CON LAS ESPECIFICACIONES VIGENTES. INCLUYE: ACARREOS DENTRO DE LA OBRA, TENDIDO Y ACOMODO POR CAPAS, LOS MATERIALES, MANO DE OBRA, HERRAMIENTA Y EQUIPO NECESARIO. | D44: M3 | E44: 31
B45: A.II.05 | C45: PLANTILLA COMPACTADA PARA TUBERIA DE 3"Ø, 6"Ø y 8"Ø, CON EQUIPO MECANICO DE 10 CM. DE ESPESOR EN ZANJAS, CON MATERIAL SELECCIONADO PRODUCTO DE BANCO LIBRE DE BOLEO MAYOR DE 3". INCLUYE: CRIBADO DEL MATERIAL, ACARREOS DENTRO DE LA OBRA, INCORPORACIÓN DE HUMEDAD, COMPACTACION DEL 85% PROCTOR, MANO DE OBRA, , HERRAMIENTA Y EQUIPO NECESARIO. | D45: M3 | E45: 25
B46: A.II.06 | C46: RELLENO COMPACTADO CON EQUIPO MECANICO MANUAL EN CAPAS DE 20 CM. EN CEPA, CON MATERIAL SELECCIONADO PRODUCTO DE BANCO (CRIBADO POR LA MALLA DE 2 1/2") LIBRE DE BOLEO MAYOR DE 3" , COMPACTADO AL 90% PROCTOR. INCLUYE: CRIBADO DEL MATERIAL, ACARREOS DENTRO DE LA OBRA, INCORPORACION DE HUMEDAD, MANO DE OBRA, HERRAMIENTA Y EQUIPO NECESARIO. | D46: M3 | E46: 68
B47: A.II.07 | C47: RELLENO COMPACTADO CON EQUIPO MECANICO MANUAL EN CAPAS DE 20 CM. EN CEPA, CON MATERIAL SELECCIONADO PRODUCTO DE LA EXCAVACION (CRIBADO POR LA MALLA DE 2 1/2") LIBRE DE BOLEO MAYOR DE 3" , COMPACTADO AL 90% PROCTOR. INCLUYE: CRIBADO DEL MATERIAL, ACARREOS DENTRO DE LA OBRA, INCORPORACION DE HUMEDAD, MANO DE OBRA, HERRAMIENTA Y EQUIPO NECESARIO. | D47: M3 | E47: 78
B48: A.II.08 | C48: TOMA DE AGUA POTABLE DE 6"x1/2" CON TUBO KITEC DE 1/2" DE DIAMETRO. INCLUYE: ABRAZADERA DE PVC TIPO-II. C/VALVULA DE INSER.Y SACABOCADO INTEGRADO FLOTAP DE 6"x3/4", REDUCCION DE 3/4" A 1/2", INSERTOS Y CONECTORES PARA KITEC, TUBO KITEC DE 1/2" DE DIAM. VALVULA DE ANGULO TIPO BOLA, VALVULA MUNICIPAL DE BLOQUEO SENCILLO, MATERIALES, MANO DE OBRA Y HERRAMIENTA. PARA RED DE AGUA POTABLE DE PVC HIDRAULICO DE 6" DE DIAMETRO. SONDEOS PARA LOCALIZACION DE LA TOMA, DEMOLICIONES NECESARIAS PARA SU INSTALACION, REPARACION PROVISIONAL DE TOMA DOMICILIARIA; INTERCONEXIONES EN TUBO DE COBRE, MANGUERA HIDRAULICA Y/O P.V.C. HIDRAULICO CED. 40 SEGUN SEA EL CASO. U.O.T. (LONGITUD DE 5.00 A 10.00 MTS.). | D48: PZA | E48: 12
B49: A.II.09 | C49: TOMA DE AGUA POTABLE DE 6"x3/4" CON TUBO KITEC DE 3/4" DE DIAMETRO. INCLUYE: ABRAZADERA DE PVC TIPO-II. C/VALVULA DE INSER.Y SACABOCADO INTEGRADO FLOTAP DE 6"x3/4", INSERTOS Y CONECTORES PARA KITEC, TUBO KITEC DE 3/4" DE DIAM. VALVULA DE ANGULO TIPO BOLA, VALVULA MUNICIPAL DE BLOQUEO SENCILLO, MATERIALES, MANO DE OBRA Y HERRAMIENTA. PARA RED DE AGUA POTABLE DE PVC HIDRAULICO DE 6" DE DIAMETRO. SONDEOS PARA LOCALIZACION DE LA TOMA, DEMOLICIONES NECESARIAS PARA SU INSTALACION, REPARACION PROVISIONAL DE TOMA DOMICILIARIA; INTERCONEXIONES EN TUBO DE COBRE, MANGUERA HIDRAULICA Y/O P.V.C. HIDRAULICO CED. 40 SEGUN SEA EL CASO. U.O.T.(LONGITUD DE 5.00 A 10.00 MTS.). | D49: PZA | E49: 1
B50: A.II.10 | C50: SUMINISTRO Y COLOCACION DE REGISTRO HIDRAULICO DE 40X54X31 CM DE PROFUNDIDAD, DE CONCRETO POLIMERICO FC=800 KG/CM2 INCLUYE: DEMOLICION Y RETIRO DEL REGISTRO EXISTENTE, TAPA Y CONTRAMARCO DE CONCRETO POLIMERICO REFORZADO CON FIBRA DE VIDRIO, EL CUERPO DEL REGISTRO SERA DE FIBRA DE VIDRIO CON ESPESOR DE 1/8" ENTINTADO AL COLOR DEL PISO SEGUN MUESTRA AUTORIZADA CON GRABADO EN TAPA CON LEYENDA QUE INDIQUE SUPERVISION, FILTRO DE 10 CM DE ESPESOR DE GRAVA TMA 3/4", CONSUMIBLES, EQUIPO, HERRAMIENTA, MANO DE OBRA Y TODO LO NECESARIO PARA LA CORRECTA EJECUCIÓN DE LOS TRABAJOS, COLOCADO SOBRE PLANTILLA DE MORTERO DE CEMENTO-ARENA 1:3 DE 6 CM. DE ESPEROR, PREVIO EL NIVELADO Y COMPACTACION DEL TERRENO NATURAL. | D50: PZA | E50: 12
B51: A.II.11 | C51: REPOSICION DE TUBERIA DE ASBESTO DE 3" DE DIAMETRO POR TUBERIA DE PVC. HIDRAULICO ANGER (RD-32.5) DE 3" ØDE DIAMETRO. INCLUYE: TRAZO, NIVELACION, SUMINISTRO, INSTALACION, JUNTEO, LIMPIEZA,PRUEBA HIDRAULICA, INTERCONEXION A LA RED MUNICIPAL, SONDEO PARA LA LOCALIZACION DE TUBERIA, MANO DE OBRA Y HERRAMIENTA, U.O.T. | D51: ML | E51: 24
B52: A.II.12 | C52: REPOSICION DE TUBERIA DE ASBESTO DE 6" DE DIAMETRO POR TUBERIA DE PVC. HIDRAULICO ANGER (RD-32.5) DE 6"Ø DE DIAMETRO. INCLUYE: TRAZO, NIVELACION, SUMINISTRO, INSTALACION, JUNTEO, LIMPIEZA,PRUEBA HIDRAULICA, INTERCONEXION A LA RED MUNICIPAL, SONDEO PARA LA LOCALIZACION DE TUBERIA, MANO DE OBRA Y HERRAMIENTA, U.O.T. | D52: ML | E52: 90
B53: A.II.13 | C53: REPOSICION DE TUBERIA DE ASBESTO DE 8" DE DIAMETRO POR TUBERIA DE PVC. HIDRAULICO ANGER (RD-32.5) DE 8"Ø DE DIAMETRO. INCLUYE: TRAZO, NIVELACION, SUMINISTRO, INSTALACION, JUNTEO, LIMPIEZA,PRUEBA HIDRAULICA, INTERCONEXION A LA RED MUNICIPAL, SONDEO PARA LA LOCALIZACION DE TUBERIA, MANO DE OBRA Y HERRAMIENTA, U.O.T. | D53: ML | E53: 90
B54: A.II.14 | C54: SUMINISTRO E INSTALACION VALVULA DE Fo.Fo. BRIDADA TIPO COMPUERTA VASTAGO FIJO DE 3" DE DIAMETRO ( 76.2mm). INCLUYE: MANIOBRAS, INSTALACION, LIMPIEZA, PRUEBA HIDRAULICA, MANO DE OBRA Y HERRAMIENTA. | D54: PZA | E54: 1
B55: A.II.15 | C55: SUMINISTRO E INSTALACIÓN DE CRUZ DE FoFo. DE 203.2mm ( 8") BRIDADA INCLUYE: . TUBERIA DE CONEXIÓN, ADAPTADOR, CONEXIONES A LA RED DE PROYECTO, CONSUMIBLES, MANO DE OBRA, EQUIPO, HERRAMIENTA.Y TODO LO NECESARIO PARA LA CORRECTA EJECUCIÓN DE LOS TRABAJOS. | D55: PZA | E55: 1
B56: A.II.16 | C56: SUMINISTRO E INSTALACIÓN DE TEE DE FoFo. ( 8") DE 203.2mm INCLUYE: . TUBERIA DE CONEXIÓN, ADAPTADOR, CONEXIONES A LA RED DE PROYECTO, CONSUMIBLES, MANO DE OBRA, EQUIPO, HERRAMIENTA.Y TODO LO NECESARIO PARA LA CORRECTA EJECUCIÓN DE LOS TRABAJOS. | D56: PZA | E56: 1
B57: A.II.17 | C57: SUMINISTRO E INSTALACIÓN DE TEE DE FoFo. ( 6") DE 152.4mm INCLUYE: . TUBERIA DE CONEXIÓN, ADAPTADOR, CONEXIONES A LA RED DE PROYECTO, CONSUMIBLES, MANO DE OBRA, EQUIPO, HERRAMIENTA.Y TODO LO NECESARIO PARA LA CORRECTA EJECUCIÓN DE LOS TRABAJOS. | D57: PZA | E57: 1
B58: A.II.18 | C58: SUMINISTRO E INSTALACION DE TEE DE FO.FO. 6" x 4" DE DIAMETRO. 152.40mm, INCLUYE: MANIOBRAS, INSTALACION, LIMPIEZA, PRUEBA HIDRAULICA, MANO DE OBRA Y HERRAMIENTA | D58: PZA | E58: 1
B59: A.II.19 | C59: SUMINISTRO E INSTALACIÓN DE REDUCCIÓN CAMPANA DE FoFo. DE 203.2mm X 76.2mm ( 8"x3") INCLUYE: . TUBERIA DE CONEXIÓN, ADAPTADOR, CONEXIONES A LA RED DE PROYECTO, CONSUMIBLES, MANO DE OBRA, EQUIPO, HERRAMIENTA.Y TODO LO NECESARIO PARA LA CORRECTA EJECUCIÓN DE LOS TRABAJOS. | D59: PZA | E59: 1
B60: A.II.20 | C60: SUMINISTRO E INSTALACIÓN DE REDUCCIÓN CAMPANA DE FoFo. DE 152.4mm X 76.2mm ( 6"x 3") INCLUYE: . TUBERIA DE CONEXIÓN, ADAPTADOR, CONEXIONES A LA RED DE PROYECTO, CONSUMIBLES, MANO DE OBRA, EQUIPO, HERRAMIENTA.Y TODO LO NECESARIO PARA LA CORRECTA EJECUCIÓN DE LOS TRABAJOS. | D60: PZA | E60: 1
B61: A.II.21 | C61: SUMINISTRO E INSTALACIÓN DE REDUCCIÓN CAMPANA DE FoFo. DE 152.4mm X 76.2mm ( 6"x 4") INCLUYE: . TUBERIA DE CONEXIÓN, ADAPTADOR, CONEXIONES A LA RED DE PROYECTO, CONSUMIBLES, MANO DE OBRA, EQUIPO, HERRAMIENTA.Y TODO LO NECESARIO PARA LA CORRECTA EJECUCIÓN DE LOS TRABAJOS. | D61: PZA | E61: 1
B62: A.II.22 | C62: SUMINISTRO E INSTALACION DE EXTREMIDAD CAMPANA DE PVC. 3" DE DIAMETRO. INCLUYE: MANIOBRAS, INSTALACION, LIMPIEZA, PRUEBA HIDRAULICA, MANO DE OBRA Y HERRAMIENTA. | D62: PZA | E62: 1
B63: A.II.23 | C63: SUMINISTRO E INSTALACION DE EXTREMIDAD ESPIGA DE PVC. 3" DE DIAMETRO. INCLUYE: MANIOBRAS, INSTALACION, LIMPIEZA, PRUEBA HIDRAULICA, MANO DE OBRA Y HERRAMIENTA. | D63: PZA | E63: 1
B64: A.II.24 | C64: SUMINISTRO E INSTALACIÓN DE JUNTA UNIVERSAL PARA TUBERIA DE 76.2 mm. ( 3"Ø) , INCLUYE: TUBERIA DE CONEXIÓN, ADAPTADOR, CONEXIONES A LA RED DE PROYECTO, CONSUMIBLES, MANO DE OBRA, EQUIPO, HERRAMIENTA.Y TODO LO NECESARIO PARA LA CORRECTA EJECUCIÓN DE LOS TRABAJOS. | D64: PZA | E64: 2
B65: A.II.25 | C65: SUMINISTRO E INSTALACIÓN DE JUNTA UNIVERSAL PARA TUBERIA DE 152.4 mm. ( 6"Ø) , INCLUYE: TUBERIA DE CONEXIÓN, ADAPTADOR, CONEXIONES A LA RED DE PROYECTO, CONSUMIBLES, MANO DE OBRA, EQUIPO, HERRAMIENTA.Y TODO LO NECESARIO PARA LA CORRECTA EJECUCIÓN DE LOS TRABAJOS. | D65: PZA | E65: 2
B66: A.II.26 | C66: SUMINISTRO E INSTALACIÓN DE JUNTA UNIVERSAL PARA TUBERIA DE 203.2 mm. ( 8"Ø) , INCLUYE: TUBERIA DE CONEXIÓN, ADAPTADOR, CONEXIONES A LA RED DE PROYECTO, CONSUMIBLES, MANO DE OBRA, EQUIPO, HERRAMIENTA.Y TODO LO NECESARIO PARA LA CORRECTA EJECUCIÓN DE LOS TRABAJOS. | D66: PZA | E66: 2
B67: A.II.27 | C67: SUMINISTRO E INSTALACION DE EMPAQUE DE NEOPRENO DE 3" DE DIAMETRO. INCLUYE: MANIOBRAS, INSTALACION, LIMPIEZA, PRUEBA HIDRAULICA, MANO DE OBRA Y HERRAMIENTA. | D67: PZA | E67: 3
B68: A.II.28 | C68: SUMINISTRO E INSTALACION DE EMPAQUE DE NEOPRENO DE 6" DE DIAMETRO. INCLUYE: MANIOBRAS, INSTALACION, LIMPIEZA, PRUEBA HIDRAULICA, MANO DE OBRA Y HERRAMIENTA. | D68: PZA | E68: 4
B69: A.II.29 | C69: SUMINISTRO E INSTALACION DE EMPAQUE DE NEOPRENO DE 8" DE DIAMETRO. INCLUYE: MANIOBRAS, INSTALACION, LIMPIEZA, PRUEBA HIDRAULICA, MANO DE OBRA Y HERRAMIENTA. | D69: PZA | E69: 4
B70: A.II.30 | C70: SUMINISTRO E INSTALACION DE EMPAQUE DE PLOMO DE 3" DE DIAMETRO. INCLUYE: MANIOBRAS, INSTALACION, LIMPIEZA, PRUEBA HIDRAULICA, MANO DE OBRA Y HERRAMIENTA. | D70: PZA | E70: 1
B71: A.II.31 | C71: SUMINISTRO E INSTALACION DE EMPAQUE DE PLOMO DE 6" DE DIAMETRO. INCLUYE: MANIOBRAS, INSTALACION, LIMPIEZA, PRUEBA HIDRAULICA, MANO DE OBRA Y HERRAMIENTA. | D71: PZA | E71: 1
B72: A.II.32 | C72: SUMINISTRO E INSTALACION DE EMPAQUE DE PLOMO DE 8" DE DIAMETRO. INCLUYE: MANIOBRAS, INSTALACION, LIMPIEZA, PRUEBA HIDRAULICA, MANO DE OBRA Y HERRAMIENTA. | D72: PZA | E72: 1
B73: A.II.33 | C73: SUMINISTRO E INSTALACION DE COPLE DE REPARACION DE PVC. HID. ANGER DE 6" DE DIAMETRO. INCLUYE: MANIOBRAS, INSTALACION, LIMPIEZA, PRUEBA HIDRAULICA, MANO DE OBRA Y HERRAMIENTA. | D73: PZA | E73: 1
B74: A.II.34 | C74: SUMINISTRO E INSTALACION DE COPLE DE REPARACION DE PVC. HID. ANGER DE 8" DE DIAMETRO. INCLUYE: MANIOBRAS, INSTALACION, LIMPIEZA, PRUEBA HIDRAULICA, MANO DE OBRA Y HERRAMIENTA. | D74: PZA | E74: 1
B75: A.II.35 | C75: SUMINISTRO E INSTALACIÓN DE TORNILLO CON CABEZA Y TUERCA HEXAGONAL DE 76.2mm. ( 3" = 5/8"x 3"1/4") INCLUYE: CONEXIÓN, CONSUMIBLES, MANO DE OBRA, EQUIPO, HERRAMIENTA.Y TODO LO NECESARIO PARA LA CORRECTA EJECUCIÓN DE LOS TRABAJOS. | D75: PZA | E75: 9
B76: A.II.36 | C76: SUMINISTRO E INSTALACIÓN DE TORNILLO CON CABEZA Y TUERCA HEXAGONAL DE 152mm. ( 6" = 3/4 x 4") INCLUYE: CONEXIÓN, CONSUMIBLES, MANO DE OBRA, EQUIPO, HERRAMIENTA.Y TODO LO NECESARIO PARA LA CORRECTA EJECUCIÓN DE LOS TRABAJOS. | D76: PZA | E76: 12
B77: A.II.37 | C77: SUMINISTRO E INSTALACIÓN DE TORNILLO CON CABEZA Y TUERCA HEXAGONAL DE 203.2mm. ( 8" = 3/4"x 4"1/2") INCLUYE: CONEXIÓN, CONSUMIBLES, MANO DE OBRA, EQUIPO, HERRAMIENTA.Y TODO LO NECESARIO PARA LA CORRECTA EJECUCIÓN DE LOS TRABAJOS. | E77: 32
B78: A.II.38 | C78: SUMINISTRO Y COLOCACION DE MARCO CON TAPA DE Fo.Fo. DE 50 x 50 CM. TIPO PESADO. CON LEYENDA DE AGUA POTABLE Y LOGOTIPO DE DISEÑO DE TAPA CON LOGO DEL GOBIERNO DE LORETO ( VER PLANO) . INCLUYE: LEYENDA DE AGUA POTABLE, MANIOBRAS, ACARREOS, MATERIAL, MANO DE OBRA Y HERRAMIENTA | D78: PZA | E78: 1
B79: A.II.39 | C79: SUMINISTRO Y COLOCACION DE CONTRAMARCO SENCILLO DE 1.40 MTS. CON CANAL DE 4" DE PERALTE. INCLUYE: MANIOBRAS, ACARREOS, MATERIAL, MANO DE OBRA Y HERRAMIENTA. | D79: PZA | E79: 1
B80: A.II.40 | C80: ELABORACION DE TAPA PROVISIONAL DE MADERA PARA CAJA DE OPERACIÓN DE VALVULAS, SEGÚN PROYECTO. INCLUYE: COLOCACION, MATERIALES, MANO DE OBRA Y HERRAMIENTA. | D80: PZA | E80: 1
B81: A.II.41 | C81: CONSTRUCCION DE ATRAQUES DE CONCRETO DE F´C=200 KG/CM2 T.M.A. 3/4" REV. NORMAL. ELABORADO EN OBRA. INCLUYE: ELABORACION, COLADO Y VIBRADO DE CONCRETO, CIMBRADO Y DESCIMBRADO, MATERIALES, MANO DE OBRA, HERRAMIENTA Y EQUIPO NECESARIO. | D81: M3 | E81: 0.5
B82: A.II.42 | C82: CONSTRUCCION DE CAJA DE OPERACION DE VALVULA TIPO 2 DE (1.28x1.18mm). MEDIDA INTERIOR, A BASE DE BLOCK 15x20x40 CM, ACABADO COMUN. ASENTADO Y APLANADO INTERIOR FULIDO CON MORTERO DE CEMENTO-ARENA EN PROPORCION DE 1:3. CIMENTACION CON LOSA DE CONCRETO F'C=200 KG/CM². T.M.A. 3/4", REV. NORMAL DE 10 CM DE ESPESOR, ARMADO CON VARILLA DEL No. 3 @ 10 CM AMBOS SENTIDOS. REFUERZO VERTICAL CON VARILLAS DEL No. 3 @ 60 CM EN CELDAS AHOGADAS CON CONCRETO F'C=150 KG/CM². T.M.A. 3/4" REV. NORMAL. CADENA DE CERRAMIENTO CON CONCRETO F'C=150 KG/CM². T.M.A. 3/4" REV. NORMAL DE 10 CM, DE 15x15 CM ARMADA CON 4 VARILLAS DEL No. 3 Y ESTRIBOS DE 1/4" @ 20 CM. LOSA DE CONCRETO F'C=250 KG/CM². T.M.A. 3/4" REV. NORMAL DE 15 CMS. DE ESPESOR. ARMADO CON VARILLA DEL No. 3 @ 15 CM AMBOS SENTIDOS. INCLUYE: EXCAVACION, RELLENO COMPACTADOAL 85% EN CAPAS DE 20 CM DE ESPESOR, HABILITADO, TRASLAPES, AMARRES DEL ACERO, CIMBRADO Y DESCIMBRADO CON MADERA DE PINO, MATERIALES , MANO DE OBRA Y HERRAMIENTA. (SIN CONTRAMARCO Y MARCO CON TAPA DE Fo.Fo.) | D82: PZA | E82: 1
B83: A.II.43 | C83: CONSTRUCCION DE CAJA DE OPERACION DE VALVULA TIPO 3 DE (1.96x1.76mm). MEDIDA INTERIOR, A BASE DE BLOCK 15x20x40 CM, ACABADO COMUN. ASENTADO Y APLANADO INTERIOR FULIDO CON MORTERO DE CEMENTO-ARENA EN PROPORCION DE 1:3. CIMENTACION CON LOSA DE CONCRETO F'C=200 KG/CM². T.M.A. 3/4", REV. NORMAL DE 10 CM DE ESPESOR, ARMADO CON VARILLA DEL No. 3 @ 10 CM AMBOS SENTIDOS. REFUERZO VERTICAL CON VARILLAS DEL No. 3 @ 60 CM EN CELDAS AHOGADAS CON CONCRETO F'C=150 KG/CM². T.M.A. 3/4" REV. NORMAL. CADENA DE CERRAMIENTO CON CONCRETO F'C=150 KG/CM². T.M.A. 3/4" REV. NORMAL DE 10 CM, DE 15x15 CM ARMADA CON 4 VARILLAS DEL No. 3 Y ESTRIBOS DE 1/4" @ 20 CM. LOSA DE CONCRETO F'C=250 KG/CM². T.M.A. 3/4" REV. NORMAL DE 15 CMS. DE ESPESOR. ARMADO CON VARILLA DEL No. 3 @ 15 CM AMBOS SENTIDOS. INCLUYE: EXCAVACION, RELLENO COMPACTADO AL 85% EN CAPAS DE 20 CM DE ESPESOR, HABILITADO, TRASLAPES, AMARRES DEL ACERO, CIMBRADO Y DESCIMBRADO CON MADERA DE PINO, MATERIALES , MANO DE OBRA Y HERRAMIENTA. (SIN CONTRAMARCO Y MARCO CON TAPA DE Fo.Fo.) | D83: PZA | E83: 1
B84: A.II.44 | C84: CORTE Y DESCABECE DE CAJA DE OPERACION DE VALVULAS PARA DAR NIVEL DE RASANTE Y PERMITIR LA LIBRE CIRCULACION DE MAQUINARIA. INCLUYE: CORTE CON CORTADORA DE DISCO, DEMOLICIONES NECESARIAS POR MEDIOS MANUALES, RECUPERACION DE LA TAPA DE Fo.Fo. EN SU CASO, ALMACENAJE, SUMINISTRO Y COLOCACION DE TAPA PROVISIONAL DE MADERA, CARGA Y ACARREO FUERA DE LA OBRA HASTA EL LUGAR INDICADO POR SUPERVISION, DE LOS MATERIALES PRODUCTO DE LA DEMOLICION, MATERIALES, SEÑALAMIENTO PREVENTIVO, MANO DE OBRA, HERRAMIENTA Y EQUIPO NECESARIO. (NOTA EL MARCO CON TAPA DE Fo.Fo. RECUPERADO SE DEBERA LLEVAR AL LUGAR INDICADO). | D84: PZA | E84: 1
B85: A.II.45 | C85: TERMINACION DE CAJA DE OPERACION DE VALVULAS SEGUN PROYECTO HASTA NIVEL DE RASANTE DE PROYECTO. PARA CAJA DE VALVULA TIPO 2 Y 5 , INCLUYE: CORTE CON CORTADORA DE DISCO, LOSA DE CONCRETO F'C=250 KG/CM² DE 10 CM. DE ESPESOR. ACABADO EXTERIOR RAYADO CON BROCHA DE PELO, ARMADA CON VAR. DEL No. 3 A CADA 10 CM. AMBOS SENTIDOS, MUROS DE BLOCK 15x20x40CM, ASENTADO CON MORTERO CEMENTO ARENA 1:5, APLANADO PULIDO INTERIOR, DESAZOLVE Y LIMPIEZA EN CASO NECESARIO, SUMINISTRO Y COLOCACION DE CONTRAMARCO Y MARCO CON TAPA DE Fo.Fo. DE 50x50 CM. TIPO PESADO CON LEYENDA DE AGUA POTABLE, MANIOBRAS, ACARREOS, CARGA Y RETIRO DE ESCOMBRO FUERA DE OBRA, EXCAVACION Y RELLENO COMPACTADO EN CAPAS DE 20 CM, AL 95% DE SU P.V.S.M. MATERIALES, SEÑALAMIENTO PREVENTIVO, MANO DE OBRA, HERRAMIENTA Y EQUIPO NECESARIO. | D85: PZA | E85: 1
B86: A.II.46 | C86: CARGA Y RETIRO DE MATERIAL MIXTO, SOBRANTE NO UTILIZABLE PRODUCTO DE LA EXCAVACION FUERA DE LA OBRA HASTA EL SITIO AUTORIZADO, SEGÚN INDICACIONES POR SUPERVISION, INCLUYE: ACARREOS DENTRO DE LA OBRA, MANO DE OBRA, HERRAMIENTA Y EQUIPO NECESARIO. | D86: M3 | E86: 90
B87: SUB TOTAL : SANEAMIENTO DE AGUA POTABLE
B88: A.III.- SANEAMIENTO DE LA RED DE DRENAJE
B89: A.III.1 | C89: EXCAVACIÓN POR MEDIOS MECANICOS, EN ZANJAS, EN TERRENO CON CUALQUIER CLASIFICACION Y PROFUNDIDAD EN PRESENCIA DE AGUA O EN SECO, RETIRO DEL MATERIAL HASTA 4 M DE DISTANCIA HORIZONTAL, EL PRECIO UNITARIO INCLUYE: TRAZO Y NIVELACION, EQUIPO DE BOMBEO PARA ACHIQUE, OBRAS DE PROTECCION DE TALUDES DE ZANJA, TRASPALEO, SEÑALAMIENTO PREVENTIVO, LA MANO DE OBRA PARA EL APOYO EN LAS OPERACIONES MECÁNICAS, AFINE DE TALUDES Y FONDO DE ZANJA, LIMPIEZA, LA MAQUINARIA, HERRAMIENTA Y EL EQUIPO NECESARIOS PARA LA CORRECTA EJECUCIÓN DE LOS TRABAJOS. PUOT. | D89: M3 | E89: 85
B90: A.III.2 | C90: EXCAVACIÓN POR MEDIOS MANUALES, EN ZANJAS, EN TERRENO CON CUALQUIER CLASIFICACION Y PROFUNDIDAD EN PRESENCIA DE AGUA O EN SECO, RETIRO DEL MATERIAL HASTA 4 M DE DISTANCIA HORIZONTAL, EL PRECIO UNITARIO INCLUYE: TRAZO Y NIVELACION, EQUIPO DE BOMBEO PARA ACHIQUE, OBRAS DE PROTECCION DE TALUDES DE ZANJA, TRASPALEO, SEÑALAMIENTO PREVENTIVO, AFINE DE TALUDES Y FONDO DE ZANJA, LIMPIEZA, LA MANO DE OBRA, EQUIPO Y HERRAMIENTA NECESARIOS PARA LA CORRECTA EJECUCIÓN DE LOS TRABAJOS. PUOT. | D90: M3 | E90: 62
B91: A.III.3 | C91: CONSTRUCCION Y FORMACION DE FILTRO PARA CONTROLAR EL NIVEL FREATICO, EN EL LECHO BAJO DE TUBERIAS, COMO CAPA ROMPEDORA DE CAPILARIDAD, CON MATERIAL PETREO (FRAGMENTOS DE ROCA Y GRAVA), TAMAÑO MAXIMO DE 1" A 3", PARCIALMENTE TRITURADO, PROVENIENTE DE BANCO, A SOLICITUD DE LA SUPERVISION QUE CUMPLAN CON LAS ESPECIFICACIONES VIGENTES. INCLUYE: ACARREOS DENTRO DE LA OBRA, TENDIDO Y ACOMODO POR CAPAS, LOS MATERIALES, MANO DE OBRA, HERRAMIENTA Y EQUIPO NECESARIO. | D91: M3 | E91: 21
B92: A.III.4 | C92: CONSTRUCCION Y FORMACION DE FILTRO CAPA DE 30cm. PARA CONTROLAR EL NIVEL FREATICO, EN EL LECHO BAJO DE TUBERIAS, COMO CAPA ROMPEDORA DE CAPILARIDAD, CON MATERIAL PETREO (FRAGMENTOS DE ROCA Y GRAVA), TAMAÑO MAXIMO DE 3/4" A 1 1/2", PARCIALMENTE TRITURADO, PROVENIENTE DE BANCO QUE CUMPLAN CON LAS ESPECIFICACIONES VIGENTES. INCLUYE: ACARREOS DENTRO DE LA OBRA, TENDIDO Y ACOMODO POR CAPAS, LOS MATERIALES, MANO DE OBRA, HERRAMIENTA Y EQUIPO NECESARIO. | D92: M3 | E92: 21
B93: A.III.5 | C93: CONSTRUCCION Y FORMACION DE FILTRO CAPA DE 15cm. PARA CONTROLAR EL NIVEL FREATICO, EN EL LECHO BAJO DE TUBERIAS, COMO CAPA ROMPEDORA DE CAPILARIDAD, CON ARENA DE ARROYO, PROVENIENTE DE BANCO QUE CUMPLAN CON LAS ESPECIFICACIONES VIGENTES. INCLUYE: ACARREOS DENTRO DE LA OBRA, TENDIDO Y ACOMODO POR CAPAS, LOS MATERIALES, MANO DE OBRA, HERRAMIENTA Y EQUIPO NECESARIO. | D93: M3 | E93: 11
B94: A.III.6 | C94: PLANTILLA COMPACTADA CON EQUIPO MECANICO DE 10 CM. DE ESPESOR EN ZANJAS, CON MATERIAL SELECCIONADO PRODUCTO DE BANCO LIBRE DE BOLEO MAYOR DE 1". INCLUYE: CRIBADO DEL MATERIAL, ACARREOS DENTRO DE LA OBRA, INCORPORACION DE HUMEDAD, COMPACTACION DEL 85% PROCTOR, MANO DE OBRA, , HERRAMIENTA Y EQUIPO NECESARIO. | D94: M3 | E94: 13
B95: A.III.7 | C95: RELLENO COMPACTADO CON EQUIPO MECANICO Y MANUAL EN CAPAS DE 20 CM. EN CEPA, CON MATERIAL SELECCIONADO PRODUCTO DE BANCO (CRIBADO POR LA MALLA DE 2 1/2") LIBRE DE BOLEO MAYOR DE 3" , COMPACTADO AL 90% PROCTOR. INCLUYE: CRIBADO DEL MATERIAL, ACARREOS DENTRO DE LA OBRA, INCORPORACION DE HUMEDAD, MANO DE OBRA, HERRAMIENTA Y EQUIPO NECESARIO. | D95: M3 | E95: 62
B96: A.III.8 | C96: RELLENO COMPACTADO CON EQUIPO MECANICO Y MANUAL EN CAPAS DE 20 CM. EN CEPA, CON MATERIAL SELECCIONADO PRODUCTO DE LA EXCAVACION (CRIBADO POR LA MALLA DE 2 1/2") LIBRE DE BOLEO MAYOR DE 3" , COMPACTADO AL 90% PROCTOR. INCLUYE: CRIBADO DEL MATERIAL, ACARREOS DENTRO DE LA OBRA, INCORPORACION DE HUMEDAD, MANO DE OBRA, HERRAMIENTA Y EQUIPO NECESARIO. | D96: M3 | E96: 71
B97: A.III.9 | C97: REPOSICIÓN DE TUBERIA DE ALBAÑAL DE CONCRETO DE 8" DE DIAM. POR TUBERIA DE PVC SANITARIO CON COPLE INTEGRAL (SRD-35) DE 8" DE DIAMETRO. CON PRESCENCIA DE AGUAS NEGRAS. INCLUYE: SUMINISTRO DE TUBO, MATERIAL, MANIOBRAS, EQUIPO PARA TAPONAMIENTO, CONEXION E INTERCONEXION DEL TUBO A POZOS DE VISITA (CONSTRUIDOS Y/O EXISTENTES), MANO DE OBRA Y HERRAMIENTA, REPARACION PROVISIONAL DE DESCARGAS DOMICILIARIAS, SONDEO PARA LA LOCALIZACION DE TUBERIA, U.O.T. | D97: ML | E97: 90
B98: A.III.10 | C98: SUMINISTRO E INSTALACION DE TUBO DE PVC SANITARIO CON COPLE INTEGRAL Y ANILLO (SRD-35) DE 6" DE DIAMETRO. PARA DESCARGA DOMICILIARIA. INCLUYE: SUMINISTRO DE TUBO, MANIOBRAS, ACARREO DE TUBO, JUNTEO, MATERIAL, MANO DE OBRA Y HERRAMIENTA. SONDEO PARA LA LOCALIZACION DE DESCARGA, P.U.O.T. | D98: ML | E98: 80
B99: A.III.11 | C99: SUMINISTRO Y COLOCACION DE SILLETAS DE P.V.C. SANITARIA DE 8" x 6" DE DIAMETRO, PARA CONEXION DE DESCARGA DOMICILIARIA A LA RED MUNICIPAL. INCLUYE: ABRAZADERAS GALVANIZADA DE 8" DE DIAMETRO, PEGAMENTO, MATERIAL, MANO DE OBRA Y HERRAMIENTA. | D99: PZA | E99: 10
B100: A.III.12 | C100: SUMINISTRO Y COLOCACION DE CODO 45º x 6" DE DIAMETRO DE P.V.C. SANITARIO. PARA DESCARGA DOMICILIARIA. INCLUYE: MANIOBRAS, EMPAQUES, MATERIALES, MANO DE OBRA Y HERRAMIENTA. | D100: PZA | E100: 10
B101: A.III.13 | C101: REGISTRO SANITARIO DE 40X60X0.60m. A BASE DE BLOCK 15*20*40cm, FIRME DE 8CM DE ESPESOR FC=150KG/CM2, APLANADO PULIDO EN INTERIOR Y REPELLADO EN EXTERIOR. INCLUYE: DEMOLICIONES DE REGISTRO EXISTENTE DE SER NECESARIO, CARGA Y RETIRO DE MATERIAL NO UTILIZABLE FUERA DE LA OBRA, HASTA EL LUGAR INDICADO POR SUPERVISION, RELLENO COMPACTADO AL 85% EN CAPAS DE 20 CM., MATERIALES, MANO DE OBRA Y HERRAMIENTA. EXCAVACION A MANO, MARCO,CONTRA MARCO DE HERRERIA TAPA DE CONCRETO,IMPERMEBILZANTE A DOS MANOS VAPORTITE 550, Y TODO LO NECESARIO PARA SU CORRECTA EJECUCION DE LOS TRABAJOS | D101: PZA | E101: 10
B102: A.III.14 | C102: RENIVELACIÓN DE REGISTRO SANITARIO DE 40X60X0.60m. A BASE DE BLOCK A BASE DE BLOCK 15*20*40cm, FIRME DE 8CM DE ESPESOR Fc=150KG/CM2, APLANADO PULIDO EN INTERIOR Y REPELLADO EN EXTERIOR. INCLUYE: DEMOLICIONES DE REGISTRO EXISTENTE DE SER NECESARIO, CARGA Y RETIRO DE MATERIAL NO UTILIZABLE FUERA DE LA OBRA, HASTA EL LUGAR INDICADO POR SUPERVISION, RELLENO COMPACTADO AL 85% EN CAPAS DE 20 CM., MATERIALES, MANO DE OBRA Y HERRAMIENTA. EXCAVACION A MANO, MARCO,CONTRA MARCO DE HERRERIA TAPA DE CONCRETO,IMPERMEBILZANTE A DOS MANOS VAPORTITE 550, Y TODO LO NECESARIO PARA SU CORRECTA EJECUCION DE LOS TRABAJOS | D102: PZA | E102: 1
B103: A.III.15 | C103: CONSTRUCCION DE POZO DE VISITA TIPO COMUN DE HASTA 2.20 M DE PROFUNDIDAD INTERIOR, LOSA DE CIMENTACION DE CONCRETO F´c=200 Kg/cm2. REV. NORMAL. T.M.A. 3/4" DE 20 CM DE ESPESOR. ARMADA CON VARILLA CORRUGADA DEL No. 4 (1/2") @ 15 CM EN AMBOS SENTIDOS, MEDIA CAÑA PULIDA DE LA 1/2 DEL DIAMETRO, Y CHAFLANES DE CONCRETO HASTA LA PARTE SUPERIOR DEL TUBO, MURO DE TABIQUE TIPO CUÑA DE 12 CM DE PERALTE. JUNTEADO Y APLANADO CON MORTERO DE CEMENTO-ARENA 1:4, APLANADO INTERIOR PULIDO, ANILLO PROTECTOR DE CONCRETO ARMADO DE 20 CM DE ESPESOR PARA RECIBIR EL BROCAL, SUMINISTRO Y COL. DE ESCALERA MARINA A BASE DE VARILLA CORRUGADA DEL No.8 (1"). HUELLA DE 50 CM. CON UNA SEPARACION @ 40 CM (CON PRIMER ANTICORROSIVO). MATERIALES, MANO DE OBRA Y HERRAMIENTA. INCLUYE: EXCAVACION, RELLENO COMPACTADO AL 95% EN CAPAS DE 20 CM (NO INCLUYE BROCAL DE Fo.Fo.) | D103: PZA | E103: 1
B104: A.III.16 | C104: ELABORACION DE TAPA PROVISIONAL DE MADERA PARA POZO DE VISITA PARA PERMITIR EL TRANSITO DEL EQUIPO DE CONSTRUCCION. INCL. COLOCACION, MATERIALES, MANO DE OBRA Y HERRAMIENTA. | D104: PZA | E104: 1
B105: A.III.17 | C105: CORTE Y DESCABECE DE POZO DE VISITA PARA DAR NIVEL DE RASANTE Y PERMITIR LA LIBRE CIRCULACION DE MAQUINARIA. INCLUYE: CORTE CON CORTADORA DE DISCO, DEMOLICIONES NECESARIAS POR MEDIOS MANUALES Y/O MECANICAS, EN MUROS DE TABIQUE, BLOCK, CONCRETO (CON O SIN ARMADO), RECUPERACION DEL BROCAL Y TAPA DE FoFo. EN SU CASO, ACARREOS, ALMACENAJE, LIMPIEZA, CARGA Y ACARREO FUERA DE LA OBRA HASTA EL LUGAR INDICADO POR SUPERVISION, DE LOS MATERIALES PRODUCTO DE LA DEMOLICION, MATERIALES, SEÑALAMIENTO PREVENTIVO, MANO DE OBRA, HERRAMIENTA Y EQUIPO NECESARIO. (NOTA EL BROCAL DE Fo.Fo. RECUPERADO SE DEBERA LLEVAR AL LUGAR INDICADO). | D105: PZA | E105: 1
B106: A.III.18 | C106: TERMINACION DE POZO DE VISITA HASTA NIVEL DE PROYECTO. INCLUYE: CORTE CON CORTADORA DE DISCO, LOSA DE 1.20x1.20 MTS. CON CONCRETO F'C=250 KG/CM² DE 15 CM. DE ESPESOR. ACABADO EXTERIOR RAYADO CON BROCHA DE PELO, ARMADA CON VAR. DEL No. 3 A CADA 10 CM. AMBOS SENTIDOS, VARILLA CORRUGA SOLDADA AL PERIMETRO DEL BROCAL PARA AMARRE DEL ARMADO DE LA PARRILLA, ELEVAR LOS MUROS DEL POZO HASTA EL NIVEL ADECUADO PARA RECIBIR EL BROCAL, MURO DE TABIQUE, CUÑA ASENTADO CON MORTERO CEM-ARENA 1:4, Y/O CONCRETO, DESAZOLVE Y LIMPIEZA EN CASO NECESARIO, SUMINISTRO Y COLOCACION DE BROCAL DE Fo.Fo. PARA POZO DE VISITA, HABILITADO, ARMADO, TRASLAPES, GANCHOS, CARGA Y RETIRO FUERA DE OBRA, DE ESCOMBRO Y DE LOS MATERIALES NO UTILIZABLES, HASTA EL LUGAR INDICADO, EXCAVACION Y RELLENO COMPACTADO EN CAPAS DE 20 CM, AL 95% DE SU P.V.S.M. LOS MATERIALES, SEÑALAMIENTO PREVENTIVO, LA MANO DE OBRA, HERRAMIENTA Y EQUIPO NECESARIO. | D106: PZA | E106: 1
B107: A.III.19 | C107: DEMOLICION DE POZO DE VISITA TIPO COMUN HASTA 2.50 MTS DE PROFUNDIDAD, POR NO DAR NIVELES Y/O ALINEACION DE LA RED DE ALCANTARILLADO DE PROYECTO, INCLUYE: CARGA Y RETIRO DE ESCOMBRO FUERA DE LA OBRA HASTA EL LUGAR INDICADO POR LA SUPERVISION, MANO DE OBRA, HERRAMIENTA Y EQUIPO NECESARIO. | D107: PZA | E107: 1
B108: A.III.20 | C108: SUMINISTRO Y COLOCACION DE BROCAL DE Fo.Fo. CIEGO TIPO TRAFICO PESADO PARA POZO DE VISITA, INCLUYE: LOSA DE 1.20x1.20 M CON CONCRETO F'C= 250 KG/CM2 DE 10 CM DE ESPESOR. ACABADO ESTAMPADO SEGUN DISEÑO , ARMADA CON VARILLA CORRUGADA DEL No.3 @ 10 CM AMBOS SENTIDOS, VARILLA CORRUGADA DEL No.3 SOLDADA AL PERIMETRO DEL BROCAL PARA AMARRE DEL ARMADO DE LA PARILLA, CARGA Y RETIRO DEL MATERIAL NO UTILIZABLE FUERA DE OBRA, HASTA LUGAR INDICADO, ACARREOS, GANCHOS, TRASLAPES, HABILITADO Y ARMADO, CIMBRA EN FRONTERAS, CORTE CON CORTADORA DE DISCO DE ACUERDO A SECCION, MANIOBRAS, MATERIAL, MANO DE OBRA Y HERRAMIENTA. ACABADO RAYADO CON BROCHA DE PELO DEL CONCRETO. | D108: PZA | E108: 1
B109: A.III.21 | C109: SUMINISTRO Y COLOCACION DE SEÑALAMIENTO PARA DESVIACION DEL TRANSITO VEHICULAR COMO MEDIDA DE PROTECCION CON LEYENDA: MAXIMO 30 Km/Hrs, HOMBRES TRABAJANDO, MAQUINAS TRABAJANDO, PRECAUCION Y DESVIACION. FABRICADO EN LAMINA REFLEJANTE CON APLICACION DE PINTURA REFLECTIVA. INCLUYE: MATERIALES, MANO DE OBRA, HERRAMIENTA Y EQUIPO NECESARIO. (DURANTE EL TIEMPO QUE SEA NECESARIO). | D109: PZA | E109: 4
B110: A.III.22 | C110: SUMINISTRO Y COLOCACION DE SEÑALAMIENTO NOCTURNO TIPO FLECHERO LUMINOSO ALIMENTACION SOLAR PARA DESVIACION DEL TRANSITO VEHICULAR COMO MEDIDA DE PROTECCION. INCLUYE MATERIALES, ACARREOS. (MANTENIMIENTO DURANTE EL TIEMPO QUE SEA NECESARIO). | D110: PZA | E110: 3
B111: A.III.23 | C111: CARGA Y RETIRO DE MATERIAL MIXTO, SOBRANTE NO UTILIZABLE PRODUCTO DE LA EXCAVACION FUERA DE LA OBRA HASTA EL SITIO INDICADO POR SUPERVISION, SEGÚN INDICACIONES POR SUPERVISION, INCLUYE: ACARREOS DENTRO DE LA OBRA, MANO DE OBRA, HERRAMIENTA Y EQUIPO NECESARIO. | D111: M3 | E111: 75
S112: 2.31 | T112: 2 | U112: =T112*S112 -> 4.62
B113: A.IV. INSTALACIÓN ELECTRICA
B114: A.IV.1 | C114: LUMINARIO PARA ALUMBRADO PÚBLICO, LUMINARIO PUNTA DE POSTE TOWNGUIDE DE 101W CON FLUJO LUMINOSO DE 9942 LM, CCT 4000K, 120-277V~ CURVA LE5 TIPO V , ARMADURA EN COLOR NEGRO MODELO 912400459048 PBDP103-101W128LED4K-MP-PC-C-LE5-UNIV-RCD-BKST, MARCA PHILIPS, CARCASA DE ALUMINIO, IP66, PROTECCION CONTRA SOBRETENSIONES DE 4kV A 10kV, TEMPERATURA DE FUNCIONAMIENTO DE -40°C a 50°C, TEMPERATURA DE COLOR 4000K LUZ NEUTRA, DRIVER INTEGRADO PHILIPS INCLUYE: INSTALACIÒN Y CABLEADO EN POSTE DE 4m A 5.50m ., HERRAJES PARA FIJACIÓN DE LAMPARA EN POSTE, PINTURA DE FABRICA, CUADRILLA DE BANDEREROS, DELIMITACION DE ÁREA DE TRABAJO A BASE DE CINTA PLASTICA DE PRECAUCIÓN (BASTA Y SUFICIENTE), INSTALACIÓN, CONEXION, PRUEBA DE PUESTA EN OPERACION, P.U.O.T. MANO DE OBRA, HERRAMIENTA Y EQUIPO, ASI COMO TODO LO NECESARIO PARA LA CORRECTA EJECUCIÓN DE LOS TRABAJOS. | D114: PZA | E114: 14
B115: A.IV.2 | C115: SUMINISTRO, INSTALACIÒN Y CONEXIÓN DE LUMINARIO DE LED DE 40W TIPO CILINDRO BIDIRECCIONAL 5" PARA PALMERA CON CANOPE 2 COB, MARCA VENTOR LINEA NAOS CLAVE IL2467LOO212UCZ. CON APERTURA DE 40° HACIA ARRIBA Y 20° HACIA ABAJO, DE 3000 K HACIA ARRIBA Y 4000K HACIA ABAJO, INCLUYE: FIJACION DOS PIEZAS POR PALMERA, AMARRADO CON CINTURON NYLON , INSTALACIÒN Y CABLEADO EN PALMERAS, HERRAJES PARA FIJACION DE LAMPARA, INSTALACIÓN, CONEXION, PRUEBA DE PUESTA EN OPERACION, P.U.O.T. MANO DE OBRA, HERRAMIENTA Y EQUIPO, ASI COMO TODO LO NECESARIO PARA LA CORRECTA EJECUCIÓN DE LOS TRABAJOS. | D115: pza | E115: 44
B116: A.IV.3 | C116: SUMINISTRO, INSTALACIÒN Y CONEXIÓN DE LUMINARIO ILUMINACION A BASE DE TIRA LED CON CUBIERTA IP68, MARCA ASTRO LED LUZ CALIDA FC-43286 , EMISION LUMINOSA LUZ CALIDA WW( 2900-3100) 544 LM/M ( CARRETE CON 5ml) 24 volt cd , 8.64w/mewtro . INCLUYE: INCLUYE CONTROLADOR RGB,FUENTE DE PODER, FIJACION A BANCA OCULTA VER DETALLE , INSTALACIÒN Y CABLEADO , HERRAJES PARA FIJACION DE LAMPARA,INSTALACIÓN, CONEXION, PRUEBA DE PUESTA EN OPERACION, P.U.O.T. MANO DE OBRA, HERRAMIENTA Y EQUIPO, ASI COMO TODO LO NECESARIO PARA LA CORRECTA EJECUCIÓN DE LOS TRABAJOS. | D116: ML | E116: 292
B117: A.IV.4 | C117: LUMINARIA LINEAL PARA EMPOTRAR , DISIPADOR DE ALUMINIO EXTRUIDO, PINTURA POLIESTER, FUENTE REMOTA INTEGRADA CON IP67, CONECTOR FUENTE IP68 , CRISTAL TEMPLADO DE 6MM. MARCA VENTOR , MODELO GALENA, CLAVE IL5042 DE 12 LEDS ( 649mm LONGITUD ) , ANODIZADO +GRAFITO , TIPO RGB-W DMX RF , LUZ MEDIA 60°, INCLUYE: HOUSING, FIJACION , INSTALACIÒN Y CABLEADO , HERRAJES PARA FIJACION DE LAMPARA,INSTALACIÓN, CONEXION, PRUEBA DE PUESTA EN OPERACION, P.U.O.T. MANO DE OBRA, HERRAMIENTA Y EQUIPO, ASI COMO TODO LO NECESARIO PARA LA CORRECTA EJECUCIÓN DE LOS TRABAJOS. | D117: PZA | E117: 17
B118: A.IV.5 | C118: LUMINARIA LINEAL PARA EMPOTRAR , DISIPADOR DE ALUMINIO EXTRUIDO, PINTURA POLIESTER, FUENTE REMOTA INTEGRADA CON IP67, CONECTOR FUENTE IP68 , CRISTAL TEMPLADO DE 6MM. MARCA VENTOR , MODELO GALENA, CLAVE IL5043 DE 18 LEDS ( 950mm LONGITUD ) , ANODIZADO +GRAFITO , TIPO RGB-W DMX RF, LUZ DIFUSA 60°, PARA CONEXION REDIO FRECUENCIA, INCLUYE: FIJACION , INSTALACIÒN Y CABLEADO , HERRAJES PARA FIJACION DE LAMPARA,INSTALACIÓN, CONEXION, PRUEBA DE PUESTA EN OPERACION, P.U.O.T. MANO DE OBRA, HERRAMIENTA Y EQUIPO, ASI COMO TODO LO NECESARIO PARA LA CORRECTA EJECUCIÓN DE LOS TRABAJOS. | D118: PZA | E118: 3
B119: A.IV.6 | C119: LUMINARIA LINEAL PARA EMPOTRAR , DISIPADOR DE ALUMINIO EXTRUIDO, PINTURA POLIESTER, FUENTE REMOTA INTEGRADA CON IP65 , CRISTAL TEMPLADO DE 6MM. MARCA VENTOR , MODELO OREON, CLAVE IL2742 DE 12 LED , ANODIZADO +SATIN , TIPO RGB DMX RF , LUZ DIFUSA , INCLUYE: FIJACION , INSTALACIÒN Y CABLEADO , HERRAJES PARA FIJACION DE LAMPARA,INSTALACIÓN, CONEXION, PRUEBA DE PUESTA EN OPERACION, P.U.O.T. MANO DE OBRA, HERRAMIENTA Y EQUIPO, ASI COMO TODO LO NECESARIO PARA LA CORRECTA EJECUCIÓN DE LOS TRABAJOS. | D119: PZA | E119: 20
B120: A.IV.7 | C120: LUMINARIA TIPO ARBORTANTE MARCA HAMPTON BAY, MODELO 7002, ACERO PINTADO , PANTALLA DE VIDRIO TRANSPARENTE 120v. COLOR NEGRO LED DE 50cm, ALTURA INCLUYE: INSTALACIÓN, CONEXION, PRUEBA DE PUESTA EN OPERACION, P.U.O.T. MANO DE OBRA, HERRAMIENTA Y EQUIPO, ASI COMO TODO LO NECESARIO PARA LA CORRECTA EJECUCIÓN DE LOS TRABAJOS. | D120: PZA | E120: 6
B121: A.IV.8 | C121: SUMINISTRO, INSTALACIÒN Y CONEXIÓN DE LUMINARIA DE SOBREPONER TIPO SPOT CON 12 LEDS , 110v-220v, EN ALUMINIO ANODIZADO + SATIN . PROTECTOR CRISTAL , optica difuisa 60°, CON VISERA , FIJADO EN BASE DE CONCRETO DE 15cmØ, DE 30cm. LONGITUD. COLOR DE LUZ RGB-W DMXRF 20w MARCA: VENTOR INCLUYE CONOTROLADOR, INSTALACIÓN, CONEXION, PRUEBA DE PUESTA EN OPERACION, P.U.O.T. MANO DE OBRA, HERRAMIENTA Y EQUIPO, ASI COMO TODO LO NECESARIO PARA LA CORRECTA EJECUCIÓN DE LOS TRABAJOS. | D121: PZA | E121: 12
B122: A.IV.9 | C122: SUMINISTRO, INSTALACIÒN Y CONEXIÓN DE LUMINARIA DE SOBREPONER TIPO SPOT CON 12 LEDS , 110v-220v, EN ALUMINIO ANODIZADO + SATIN . PROTECTOR CRISTAL , optica difuisa 60°, CON VISERA , FIJADO EN BASE DE CONCRETO DE 15cmØ, DE 30cm. LONGITUD. COLOR DE LUZ "A" AMBAR 2700°K ( UBICACION JARDINERAS ), MARCA: VENTOR INCLUYE CONOTROLADOR, INSTALACIÓN, CONEXION, PRUEBA DE PUESTA EN OPERACION, P.U.O.T. MANO DE OBRA, HERRAMIENTA Y EQUIPO, ASI COMO TODO LO NECESARIO PARA LA CORRECTA EJECUCIÓN DE LOS TRABAJOS. | D122: PZA | E122: 24
B123: A.IV.10 | C123: SUMINISTRO, INSTALACIÒN Y CONEXIÓN DE LUMINARIO TIPO SPOT CON 12 LEDS , MODELO: NIKOLA CLAVE: IL61-LO028, MARCA: VENTOR. INCLUYE CONTROLADOR RGB, INSTALACIÓN, CONEXION, PRUEBA DE PUESTA EN OPERACION, P.U.O.T. MANO DE OBRA, HERRAMIENTA Y EQUIPO, ASI COMO TODO LO NECESARIO PARA LA CORRECTA EJECUCIÓN DE LOS TRABAJOS. | D123: PZA | E123: 5
B124: A.IV.11 | C124: SUMINISTRO, INSTALACIÒN Y CONEXIÓN DE CONSOLA DMX 512 CANALES, 2 UNIVERSOS CON 8 PUERTOS DE DISPARO ( SLESA-08), INCLUYE: PROGRAMACION DE ESCENAS, INSTALACIÒN Y CABLEADO. HERRAJES PARA FIJACION , INSTALACIÓN, CONEXION, PRUEBA DE PUESTA EN OPERACION, P.U.O.T. MANO DE OBRA, HERRAMIENTA Y EQUIPO, ASI COMO TODO LO NECESARIO PARA LA CORRECTA EJECUCIÓN DE LOS TRABAJOS. | D124: PZA | E124: 1
B125: A.IV.12 | C125: SUMINISTRO, INSTALACIÒN Y CONEXIÓN DE FUENTE DE PODER 127V/220V, INCLUYE: INSTALACIÒN Y CABLEADO EN MURETE., HERRAJES PARA FIJACION , INSTALACIÓN, CONEXION, PRUEBA DE PUESTA EN OPERACION, P.U.O.T. MANO DE OBRA, HERRAMIENTA Y EQUIPO, ASI COMO TODO LO NECESARIO PARA LA CORRECTA EJECUCIÓN DE LOS TRABAJOS. | D125: PZA | E125: 10
B126: A.IV.13 | C126: SUMINISTRO, INSTALACIÒN Y CONEXIÓN DE OPTO SPLITTER RGB-DMX INCLUYE: INSTALACIÒN Y CABLEADO BLINDADO, CONECTORES. HERRAJES PARA FIJACION , INSTALACIÓN, CONEXION, PRUEBA DE PUESTA EN OPERACION, P.U.O.T. MANO DE OBRA, HERRAMIENTA Y EQUIPO, ASI COMO TODO LO NECESARIO PARA LA CORRECTA EJECUCIÓN DE LOS TRABAJOS. | D126: PZA | E126: 5
B127: A.IV.14 | C127: SUMINISTRO, INSTALACIÒN Y CONEXIÓN DE TRASMISOR DE SEÑAL DMX RF INCLUYE: INSTALACIÒN Y CABLEADO BLINDADO, CONECTORES. HERRAJES PARA FIJACION , INSTALACIÓN, CONEXION, PRUEBA DE PUESTA EN OPERACION, P.U.O.T. MANO DE OBRA, HERRAMIENTA Y EQUIPO, ASI COMO TODO LO NECESARIO PARA LA CORRECTA EJECUCIÓN DE LOS TRABAJOS. | D127: PZA | E127: 7
B128: A.IV.15 | C128: LUMINARIA EXTERIOR PARA BOLARDO DE ACENTO / LUZ DE CORTESIA CODIGO 5020-LED, COLOR ACERO INOXIDABLE, PROTECCIÓN IP65 MARCA CALUX DE 7W LEDS , VOLTAJE 100-240v, TEMPERATURA 3000K , CON 110° DE APERTURA, 473 lm.INCLUYE:I INSTALACIÓN, CONEXION, PRUEBA DE PUESTA EN OPERACION, P.U.O.T. MANO DE OBRA, HERRAMIENTA Y EQUIPO, ASI COMO TODO LO NECESARIO PARA LA CORRECTA EJECUCIÓN DE LOS TRABAJOS. | D128: PZA | E128: 16
B129: A.IV.16 | C129: LUMINARIA EXTERIOR OUTDOOR PISO MODELO ATLANTIC II, CLAVE 07-7201-*, DIRIGIBLE, MARCA ASTROLED LIGHTING, TIPO LED DE 25W, DE ACENTO, COLOR ACERO INOXIDABLE, PROTECCIÓN IP67 25W LEDS , LUMENES 2200, VOLTAJE 100-240v, TEMPERATURA 3000K , CON 110° DE APERTURA, 473 lm., INCLUYE: INSTALACIÓN, CONEXION, PRUEBA DE PUESTA EN OPERACION, P.U.O.T. MANO DE OBRA, HERRAMIENTA Y EQUIPO, ASI COMO TODO LO NECESARIO PARA LA CORRECTA EJECUCIÓN DE LOS TRABAJOS. | D129: PZA | E129: 5
B130: A.IV.17 | C130: LUMINARIA EXTERIOR DE ACENTO / LUZ DE CORTESIA PARA EMPOTRAR EN MURO CODIGO 8920-LED-GR, COLOR GRIS , PROTECCIÓN IP65 MARCA CALUX DE 4W LEDS , VOLTAJE 100-240v, 3000K , CON 31° DE APERTURA, INCLUYE: INSTALACIÓN, CONEXION, PRUEBA DE PUESTA EN OPERACION, P.U.O.T. MANO DE OBRA, HERRAMIENTA Y EQUIPO, ASI COMO TODO LO NECESARIO PARA LA CORRECTA EJECUCIÓN DE LOS TRABAJOS. | D130: PZA | E130: 30
B131: A.IV.18 | C131: SUMINISTRO, INSTALACIÒN Y CONEXIÓN DE LUMINARIO TIPO REFLECTOR MARCA FORLIGHTING MODELO RE10 DE LED DE 200 WATTS COLOR GRIS. INCLUYE: BASE DE HERRERIA PARA MONTAR REFLECTOR, INSTALACIÒN Y CABLEADO EN POSTE DE 11m., HERRAJES PARA FIJACION DE LAMPARA Y POSTE, PINTURA ELECTROTASTICA DE FABRICA, INSTALACIÓN, CONEXION, PRUEBA DE PUESTA EN OPERACION, P.U.O.T. MANO DE OBRA, HERRAMIENTA Y EQUIPO, ASI COMO TODO LO NECESARIO PARA LA CORRECTA EJECUCIÓN DE LOS TRABAJOS. | D131: PZA | E131: 2
B132: A.IV.19 | C132: POSTE MODELO TOWNGUIDE CON UNA ALTURA TOTAL DE 4M. INCLUYE: INSTALACIÒN Y CABLEADO HASTA 4 M., HERRAJES PARA FIJACION DE POSTE, PINTURA DE FABRICA, CUADRILLA DE BANDEREROS, DELIMITACION DE ÁREA DE TRABAJO A BASE DE CINTA PLASTICA DE PRECAUCIÓN (BASTA Y SUFICIENTE), INSTALACIÓN, CONEXION, PRUEBA DE PUESTA EN OPERACION, P.U.O.T. MANO DE OBRA, HERRAMIENTA Y EQUIPO, ASI COMO TODO LO NECESARIO PARA LA CORRECTA EJECUCIÓN DE LOS TRABAJOS. | D132: PZA | E132: 5
B133: A.IV.20 | C133: POSTE MODELO TOWNGUIDE CON UNA ALTURA TOTAL DE 5.50 M. INCLUYE: INSTALACIÒN Y CABLEADO HASTA 5.5 M., HERRAJES PARA FIJACION DE POSTE, PINTURA DE FABRICA, CUADRILLA DE BANDEREROS, DELIMITACION DE ÁREA DE TRABAJO A BASE DE CINTA PLASTICA DE PRECAUCIÓN (BASTA Y SUFICIENTE), INSTALACIÓN, CONEXION, PRUEBA DE PUESTA EN OPERACION, P.U.O.T. MANO DE OBRA, HERRAMIENTA Y EQUIPO, ASI COMO TODO LO NECESARIO PARA LA CORRECTA EJECUCIÓN DE LOS TRABAJOS. | D133: PZA | E133: 9
B134: A.IV.21 | C134: CONSTRUCCIÓN E INSTALACIÓN DE BASE PIRAMIDAL PARA POSTE DE ALUMBRADO CIMENTACIÓN TRAPEZOIDAL DE CONCRETO DE 40x40 EN CORONA Y 80x80 EN BASE, CON ALTURA DE 100 Cm., F´c=200 Kg/Cm2 ARMADA CON VARILLA N° 3 Y 4 SEGÚN SE INDICA EN PLANOS, ANCLAS DE 3/4" GALVANIZADAS, TUBO CONDUIT PARED GRUESA DE 3/4" DE REGISTRO A PARTE SUPERIOR DE PEDESTAL ( VER DETALLE EN PLANO DE INSTALACIONES ), INCLUYE CARGO DIRECTO POR EL COSTO DE MANO DE OBRA Y MATERIALES REQUERIDOS, FLETE A OBRA, ACARREO, COPLE, TRAZO, CORTE, CIMBRA, COLOCACIÓN, GUÍA DE ALAMBRE GALVANIZADO CALIBRE 14, FIJACIÓN, LIMPIEZA Y RETIRO DE SOBRANTES FUERA DE OBRA, EQUIPO DE SEGURIDAD, INSTALACIONES ESPECÍFICAS, DEPRECIACIÓN Y DEMÁS CARGOS DERIVADOS DEL USO DE EQUIPO Y HERRAMIENTA, EN CUALQUIER NIVEL. NOTA: LA BASE DEL POSTE DEBERA SER PRECOLADA FUERA DEL SITIO DE LA OBRA. | D134: PZA | E134: 14
B135: A.IV.22 | C135: REGISTROS DE FIBRA DE VIDRIO CON TAPA Y CONTRAMARCO DE CONCRETO POLIMERICO REFORZADO CON FIBRA DE VIDRIO CON DIMENSIONES 33X 33 X 40 MTS, CUERPO DEL REGISTRO DE FIBRA DE VIDRIO CON UN ESPESOR DE 1/8" PERNOS DE ACERO INOXIDABLE DE 1/8" PARA EL MANEJO DE LA TAPA PARA ALUMBRADO, EXCAVACIÓN, COMPACTACIÓN DE FONDO, RELLENO, CAMA DE GRAVA, NOMENCLATURA SEGÚN DISEÑO, MANO DE OBRA, HERRAMIENTA, EQUIPO, ASI COMO TODO LO NECESARIO PARA LA CORRECTA EJECUCIÓN DE LOS TRABAJOS. | D135: PZA | E135: 15
B136: A.IV.23 | C136: SUMINISTRO Y COLOCACIÓN DE REGISTRO ELÉCTRICO DE 40 X 60 X 60 CM, PARA ALUMBRADO, CON MARCO Y CONTRAMARCO DE ACERO DE 1 3/4" X 1 3/4" X 3/16" X 2"X2"X3/16" CON GALVANIZADO POR INMERSION, TAPA COLADA EN SITIO DE ACUERDO A LOS ACABADOS DE BANQUETAS SEGÚN PROYECTO, INCLUYE: SOLDADURA DE TAPAS AL CONTRAMARCO, EXCAVACIÓN, COMPACTACIÓN DE FONDO, RELLENO, CAMA DE GRAVA, NOMENCLATURA SEGÚN DISEÑO, MANO DE OBRA, HERRAMIENTA, EQUIPO, ASI COMO TODO LO NECESARIO PARA LA CORRECTA EJECUCIÓN DE LOS TRABAJOS. | D136: PZA | E136: 3
B137: A.IV.24 | C137: SUMINISTRO Y COLOCACIÓN DE GABINETE HIMEL DE 40*30*20cm, PARA SISTEMAS RGBW DMX RF, INCLUYE: SUJECION FIJACION CONEXIONES , MANO DE OBRA, HERRAMIENTA, EQUIPO, ASI COMO TODO LO NECESARIO PARA LA CORRECTA EJECUCIÓN DE LOS TRABAJOS. | D137: PZA | E137: 7
B138: A.IV.25 | C138: SUMINISTRO E INSTALACIÓN DE ACOMETIDA NORMA CFE, BASE DE MEDICIÓN, CAP. 125 AMPERES, SISTEMA 1F-3H, INCLUYE : ITM 2 X 100; CONDUCTORES DE COBRE CALIBRE 2 AWG, VARILLA COOPERWELL 5/8 X 3 M, REGISTRO DE PLASTICO 10 PULG., INCADO DE VARILLA DE TIERRA, GRAPA, NIVELACIÓN, RANURADO, RESANADO, HERRAJES, CONEXIÓN, PRUEBAS DE FUNCIONAMIENTO, ETIQUETADO CON LEYENDA DE SEGURIDAD, ACABADOS FINALES, MANO DE OBRA, HERRAMIENTA Y TODO LO NECESARIO PARA LA CORRECTA EJECUCIÓN DE LOS TRABAJOS. | D138: PZA. | E138: 1
B139: A.IV.26 | C139: SUMINISTRO E INSTALACIÓN DE CENTRO DE CARGA, MARCA SQUARE D, CAT. QO112ML125G, CAP. 125 AMPERES, SISTEMA 1F-3H, 12 ESPACIOS, CON INTERRUPTOR PRINCIPAL O SIMILAR; INCLUYE : NIVELACIÓN, RANURADO, HERRAJES, CONEXIÓN, PRUEBAS DE FUNCIONAMIENTO, ETIQUETADO CON LEYENDA DE SEGURIDAD, ACABADOS FINALES, MANO DE OBRA, HERRAMIENTA Y TODO LO NECESARIO PARA LA CORRECTA EJECUCIÓN DE LOS TRABAJOS. | D139: PZA. | E139: 1
B140: A.IV.27 | C140: SUMINISTRO E INSTALACIÓN DE FOTOCELDA TIPO OJILO PARA CAJA 2 X 4, 127V/1200W; INCLUYE : NIVELACIÓN, RANURADO, HERRAJES, CONEXIÓN, CONECTORES TIPO CAPUCHA, TERMINALES PONCHABLE TIPO OJILLO, CINTA AISLANTE SUPER 33 3M,PRUEBAS DE FUNCIONAMIENTO, ETIQUETADO CON LEYENDA DE SEGURIDAD, ACABADOS FINALES, MANO DE OBRA, HERRAMIENTA Y TODO LO NECESARIO PARA LA CORRECTA EJECUCIÓN DE LOS TRABAJOS. | D140: PZA. | E140: 5
B141: A.IV.28 | C141: SUMINISTRO E INSTALACIÓN DE FOTOCELDA CON MENSULA, 220V/1200W; INCLUYE : NIVELACIÓN, RANURADO, HERRAJES, CONEXIÓN, CONECTORES TIPO CAPUCHA, TERMINALES PONCHABLE TIPO OJILLO, CINTA AISLANTE SUPER 33 3M,PRUEBAS DE FUNCIONAMIENTO, ETIQUETADO CON LEYENDA DE SEGURIDAD, ACABADOS FINALES, MANO DE OBRA, HERRAMIENTA Y TODO LO NECESARIO PARA LA CORRECTA EJECUCIÓN DE LOS TRABAJOS. | D141: PZA. | E141: 1
B142: A.IV.29 | C142: SUMINSTRO E INSTALACIÓN DE INTERRUPTOR TERMOMAGNETICO MARCA SQUARE D, 2 POLOS, 15 AMPER, TIPO QO250, 10 KA O SIMILAR; INCLUYE : CONEXIÓN, IDENTIFICIÓN DE CABLEADO, PEINADO DE CABLES, PRUEBAS DE FUNCIONAMIENTO, LEYENDA Y ETIQUETA DE SEGURIDAD, MANO DE OBRA, HERRAMIENTA Y TODO LO NECESARIO PARA CORRECTA EJECUCIÓN DE LOS TRABAJOS. | D142: PZA. | E142: 2
B143: A.IV.30 | C143: SUMINSTRO E INSTALACIÓN DE INTERRUPTOR TERMOMAGNETICO CON PROTECCIÓN FALLA A TIERRA TIPO GFCI, MARCA SQUARE D, 1 POLOS, 15 AMPER, TIPO QO115GFCI, 10 kA. O SIMILAR; INCLUYE : CONEXIÓN, IDENTIFICIÓN DE CABLEADO, PEINADO DE CABLES, PRUEBAS DE FUNCIONAMIENTO, LEYENDA Y ETIQUETA DE SEGURIDAD, MANO DE OBRA, HERRAMIENTA Y TODO LO NECESARIO PARA CORRECTA EJECUCIÓN DE LOS TRABAJOS. | D143: PZA. | E143: 1
B144: A.IV.31 | C144: SUMINSTRO E INSTALACIÓN DE INTERRUPTOR TERMOMAGNETICO, MARCA SQUARE D, 1 POLOS, 15 AMPER, TIPO QO115, 10 kA. O SIMILAR; INCLUYE : CONEXIÓN, IDENTIFICIÓN DE CABLEADO, PEINADO DE CABLES, PRUEBAS DE FUNCIONAMIENTO, LEYENDA Y ETIQUETA DE SEGURIDAD, MANO DE OBRA, HERRAMIENTA Y TODO LO NECESARIO PARA CORRECTA EJECUCIÓN DE LOS TRABAJOS. | D144: PZA. | E144: 8
B145: A.IV.32 | C145: SUMINSTRO E INSTALACIÓN DE GABINETE NEMA 3R; INCLUYE : MONTAJE,NIVELACIÓN, MANO DE OBRA, HERRAMIENTA Y TODO LO NECESARIO PARA CORRECTA EJECUCIÓN DE LOS TRABAJOS. | D145: PZA. | E145: 1
B146: A.IV.33 | C146: SUMINSTRO E INSTALACIÓN DE CONTACTO DUPLEX MARCA LEVITON 127V/15A, NEMA 15-5R, INCLUYE : TAPA, CONEXIÓN, IDENTIFICIÓN DE CABLEADO, TERMINALES PONCHABLES, TERMINALES TIPO CAPUCHO, PRUEBAS DE FUNCIONAMIENTO, LEYENDA Y ETIQUETA DE SEGURIDAD, MANO DE OBRA, HERRAMIENTA Y TODO LO NECESARIO PARA CORRECTA EJECUCIÓN DE LOS TRABAJOS. | D146: PZA. | E146: 2
B147: A.IV.34 | C147: SUMINSTRO E INSTALACIÓN DE CONTACTO DUPLEX MARCA LEVITON 250V/30A 2P-3H TIPO L6 30 R , , INCLUYE : TAPA, CONEXIÓN, IDENTIFICIÓN DE CABLEADO, TERMINALES PONCHABLES, TERMINALES TIPO CAPUCHO, PRUEBAS DE FUNCIONAMIENTO, LEYENDA Y ETIQUETA DE SEGURIDAD, MANO DE OBRA, HERRAMIENTA Y TODO LO NECESARIO PARA CORRECTA EJECUCIÓN DE LOS TRABAJOS. | D147: PZA | E147: 3
B148: A.IV.35 | C148: SUMINISTRO Y TENDIDO DE CABLE VULCANEL M.R. PARA DISTRIBUCION SUBTERRANEA TRIPLEX , FORMADO POR CONDUCTOR DE FASE DE ALUMINIO DURO COMPACTO CLASE B, AISLAMIENTO A BASE DE POLIETILENO DE CADENA CRUZADA (XLP) COLOR NEGRO E IDENTIFICADO POR MEDIO DE CEJAS, TEMPERATURA DE OPERACION 75 °C, TENSION DE OPERACION DE 600 V, REUNIDOS DE FORMA CONCENTRICA JUNTO CON UN CONDUCTOR MENSAJERO DE ALUMINIO DURO COMPACTO CLASE B, AISLAMIENTO DE POLIETILENO DE CADENA CRUZADA (XLP) COLOR BLANCO. CALIBRES 2 - 2/0 + 1 - 1 | D148: ML | E148: 100
B149: A.IV.36 | C149: SUMINISTRO E INSTALACIÓN DE CABLE DE COBRE CALIBRE 8 AWG (8,37 MM²), AISLAMIENTO TIPO THHW - LS, 600 V, 75/90°C MARCA VIAKON O SIMILAR; INCLUYE : IDENTIFICACIÓN DE CABLEADO, GUIADO, RECORTE, CINTA AISLANTE, CONECTORES BIPARTIDO, CONEXIONES, MANO DE OBRA, HERRAMIENTA Y TODO LO NECESARIO PARA CORRECTA EJECUCIÓN DE LOS TRABAJOS. | D149: ML | E149: 750
B150: A.IV.37 | C150: SUMINISTRO E INSTALACIÓN DECABLE DE COBRE CALIBRE 10 AWG (5,26 MM²), AISLAMIENTO TIPO THHW - LS, 600 V, 75/90°C. MARCA VIAKON O SIMILAR; INCLUYE : IDENTIFICACIÓN DE CABLEADO, GUIADO, RECORTE, CINTA AISLANTE, CONECTORES BIPARTIDO, CONEXIONES, MANO DE OBRA, HERRAMIENTA Y TODO LO NECESARIO PARA CORRECTA EJECUCIÓN DE LOS TRABAJOS. | D150: ML | E150: 850
B151: A.IV.38 | C151: SUMINISTRO E INSTALACIÓN DECABLE DE COBRE CALIBRE 12 AWG (3,31 MM²), AISLAMIENTO TIPO THHW - LS, 600 V, 75/90°C. MARCA VIAKON O SIMILAR; INCLUYE : IDENTIFICACIÓN DE CABLEADO, GUIADO, RECORTE, CINTA AISLANTE, CONECTORES BIPARTIDO, CONEXIONES, MANO DE OBRA, HERRAMIENTA Y TODO LO NECESARIO PARA CORRECTA EJECUCIÓN DE LOS TRABAJOS. | D151: ML | E151: 1150
B152: A.IV.39 | C152: SUMINISTRO E INSTALACIÓN DE CABLE 3 HILOS CALIBRE 22 PARA COMUNICACION ENTRE CADA LUMINARIO. MARCA VENTOR O SIMILAR; INCLUYE : IDENTIFICACIÓN DE CABLEADO, GUIADO, RECORTE, CINTA AISLANTE, CONECTORES BIPARTIDO, CONEXIONES, MANO DE OBRA, HERRAMIENTA Y TODO LO NECESARIO PARA CORRECTA EJECUCIÓN DE LOS TRABAJOS. | D152: ML | E152: 200
B153: A.IV.40 | C153: SUMINISTRO E INSTALACIÓN TUBO CONDUIT PVC RIGIDO CED. 40, DÍAMETRO 2 PLGS (53 MM²), MARCA CARLON O SIMILAR, INCLUYE : CURVAS, CONECTORES Y ACCESORIOS ADECUADO, FIJACIÓN, NIVELACIÓN, CORTES Y RETIRO DE ESCOMBRO, MANO DE OBRA, HERRAMIENTA Y TODO LO NECESARIO PARA CORRECTA EJECUCIÓN DE LOS TRABAJOS. | D153: ML | E153: 100
B154: A.IV.41 | C154: SUMINISTRO E INSTALACIÓN TUBO CONDUIT PVC RIGIDO CED. 40, DÍAMETRO 1 PLGS (27 MM²), MARCA CARLON O SIMILAR, INCLUYE : CURVAS, CONECTORES Y ACCESORIOS ADECUADO, FIJACIÓN, NIVELACIÓN, CORTES Y RETIRO DE ESCOMBRO, MANO DE OBRA, HERRAMIENTA Y TODO LO NECESARIO PARA CORRECTA EJECUCIÓN DE LOS TRABAJOS. | D154: ML | E154: 450
B155: A.IV.42 | C155: SUMINISTRO E INSTALACIÓN TUBO CONDUIT PVC RIGIDO CED. 40, DÍAMETRO 3/4 PLGS (21 MM²), MARCA CARLON O SIMILAR, INCLUYE : CURVAS, CONECTORES Y ACCESORIOS ADECUADO, FIJACIÓN, NIVELACIÓN, CORTES Y RETIRO DE ESCOMBRO, MANO DE OBRA, HERRAMIENTA Y TODO LO NECESARIO PARA CORRECTA EJECUCIÓN DE LOS TRABAJOS. | D155: ML | E155: 150
B156: A.IV.43 | C156: SUMINISTRO E INSTALACIÓN TUBO CONDUIT PVC RIGIDO CED. 40, DÍAMETRO 1/2 PLGS (16 MM²), MARCA CARLON O SIMILAR, INCLUYE : CURVAS, CONECTORES Y ACCESORIOS ADECUADO, FIJACIÓN, NIVELACIÓN, CORTES Y RETIRO DE ESCOMBRO, MANO DE OBRA, HERRAMIENTA Y TODO LO NECESARIO PARA CORRECTA EJECUCIÓN DE LOS TRABAJOS. | D156: ML | E156: 400
B157: A.IV.44 | C157: SALIDA ELÉCTRICA 220 VOLTS PARA LUMINARIAS, INCLUYE : GUIADO, TERMINALES PONCHABLES, CONECTORES TIPO CAPUCHA, CONECTORES TIPO OJILLO , CINTA VULCANIZABLE, CINTA AISLANTE, IDENTIFICACIÓN DE CABLEADO, CORTE Y RETIRO DE DESPERDICIO, COCA, MANO DE OBRA, HERRAMIENTA Y TODO LO NECESARIO PARA LA CORRECTA EJECUCIÓN DE LOS TRABAJOS. | D157: SAL | E157: 13
B158: A.IV.45 | C158: SALIDA ELÉCTRICA 220 VOLTS PARA LUMINARIAS, INCLUYE : GUIADO, TERMINALES PONCHABLES, CONECTORES TIPO CAPUCHA, CONECTORES TIPO OJILLO , CINTA VULCANIZABLE, CINTA AISLANTE, IDENTIFICACIÓN DE CABLEADO, CORTE Y RETIRO DE DESPERDICIO, COCA, MANO DE OBRA, HERRAMIENTA Y TODO LO NECESARIO PARA LA CORRECTA EJECUCIÓN DE LOS TRABAJOS. | D158: SAL | E158: 34
B159: A.IV.46 | C159: SALIDA ELÉCTRICA 127 VOLTS PARA LUMINARIAS, INCLUYE : CAJA OCTAGONAL O CAJA 4 X 4 GALVANIZADA, GUIADO, TERMINALES PONCHABLES, CONECTORES TIPO CAPUCHA, CONECTORES TIPO OJILLO, CINTA VULCANIZABLE, CINTA AISLANTE, IDENTIFICACIÓN DE CABLEADO, CORTE Y RETIRO DE DESPERDICIO, COCA, MANO DE OBRA, HERRAMIENTA Y TODO LO NECESARIO PARA LA CORRECTA EJECUCIÓN DE LOS TRABAJOS. | D159: SAL | E159: 148
B160: A.IV.47 | C160: SALIDA ELÉCTRICA PARA CONTACTO DUPLEX 127V/15A, INCLUYE : GUIADO, TERMINALES PONCHABLES, CONECTORES TIPO CAPUCHA, CONECTORES TIPO OJILLO, CINTA VULCANIZABLE, CINTA AISLANTE, IDENTIFICACIÓN DE CABLEADO, CORTE Y RETIRO DE DESPERDICIO, COCA, MANO DE OBRA, HERRAMIENTA Y TODO LO NECESARIO PARA LA CORRECTA EJECUCIÓN DE LOS TRABAJOS. | D160: SAL | E160: 3
B161: A.IV.48 | C161: SERVICIO DE DICTAMEN DE VERIFICACIÓN POR LA UNIDAD VERIFICACIÓN DE INSTALACIONES ELÉCTRICAS ACREDITADA POR LA ENTIDAD MEXICANA DE ACREDITACIÓN (EMA) A.C. , REFERENTA A LA NOM-001-SEDE-2012, NOM-013-ENER-2004, SEGÚN APLIQUEN. | D161: LOTE | E161: 1
B162: A.IV.49 | C162: TRAMITES Y GESTIÓN ANTE LA COMISICIÓN FEDERAL DE ELECTRICIDAD (CFE) PARA LOS PERMISOS, AUTORIZACIONES Y PAGOS QUE ALLA LUGAR, PREVIAS AL INICIO DE LA OBRA, ASÍ COMO LA ENTREGA FINAL DE LA MISMA. | D162: LOTE | E162: 1
C163: SUB TOTAL DE INSTALACION ELECTRICA | S163: 2.31 | T163: 2 | U163: =T163*S163 -> 4.62
B164: A.V.MEDIA TENSION
B165: A.V.1 | C165: SUMINISTRO A COMPAÑÍA DE ENERGIA ELECTRICA (CFE) DE MATERIALES PARA ADECUACION DE ESTRUCTURA GENERAL EN POSTE EXISTENTE, PARA CONSTRUCCION DE TAS3 . INCLUYE: CRUCETA GALVANIZADA PT200 (1) Y HERRAJES COMPLEMENTARIOS, CONECTOR DE LINEA VIVA (3), CONECTADOR TIPO ESTRIBO (3), CORTA CIRCUITO FUSIBLE 27KV (3), APARTARRAYO POLIMERICO 10 KV (3). | D165: LOTE | E165: 1
B166: A.V.2 | C166: SUMINISTRO E INSTALACIÓN DE TUBERIA GALVANIZADA 4" ROSCADA, INCLUYE: FLEJE DE ACERO INOX, MATERIAL DE FIJACIÓN , HERRAMIENTA MANO DE OBRA Y TODO LO NECESARIO PARA SU CORRECTA EJECUCIÓN. | D166: PZA | E166: 2
B167: A.V.3 | C167: SUMINISTRO E INSTALACIÓN DE BOTA PREMOLDEADA TERMOCONTRACTIL 4" CON 3 SALIDAS, INCLUYE: MATERIAL DE FIJACIÓN, HERRAMIENTA, MANO DE OBRA Y TODO LO NECESARIO PARA SU CORRECTA EJECUCIÓN | D167: PZA | E167: 1
B168: A.V.4 | C168: SUMINISTRO E INSTALACIÓN DE TERMINAL QTIII MCA. 3M, 15 KV PARA INTEMPERIE CAL 1/0 AWG CON PROTOCOLO O SIGLA 3, INCLUYE: MATERIAL DE FIJACIÓN, HERRAMIENTA, MANO DE OBRA Y TODO LO NECESARIO PARA SU CORRECTA EJECUCION. | D168: PZA | E168: 3
B169: A.V.5 | C169: SUMINISTRO E INSTALACION DE CABLE DE MEDIA TENSIÓN XLP-AL 15 KV, 100% N.A, CAL. 1/0 AWG. INCLUYE LIMPIEZA DE TUBERIA, GUIADO, CABLEADO, ACOMODO, ACARREOS, ACOMODOS, ENSINCHADO, HERRAMIENTA, MANO DE OBRA Y TODO LO NECESARIO PARA SU CORRECTA EJECUCION. | D169: ML | E169: 45
B170: A.V.6 | C170: SUMINISTRO E INSTALACIÓN DE REGISTRO DE MEDIA TENSION TIPO 4 EN BANQUETA CON TAPA CUADRADA (RMTB4-TC NORMA CFE), INCLUYE ACARREOS, EXCAVACIÓN, MANO DE OBRA, HERRAMIENTAS, ACCESORIOS DE MOTAJE Y TODO LO NECESARIO PARA SU CORRECTA EJECUCIÓN. | D170: PZA | E170: 1
B171: A.V.7 | C171: SUMINISTRO E INSTALACIÓN DE CAJA DERIVADORA OCC 4 VIAS, 15 KVA 200 AMP, MARCA CHARDON O SIMILAR EN CALIDAD CON SIGLA3 (APROBACION LAPEM-CFE), INCLUYE: ACCESORIOS DE FIJACION, MATERIAL, HERRAMIENTA, MANO DE OBRA Y TODO LO NECESARIO PARA SU CORRECTA EJECUCIÓN. | D171: PZA | E171: 3
B172: A.V.8 | C172: SUMINISTRO E INSTALACIÓN DE CODO OCC, 15 KV, 200A, CAL 1/0 AWG MARCA CHARDON CON PRUEBA DE INTERCAMBIABIALIDAD LAPEM-CFE, INCLUYE MATERIAL DE INSTALACION, HERRAMIENTAS, MANO DE OBRA Y TODO LO NECESARIO PARA SU CORRECTA EJECUCIÓN. | D172: PZA | E172: 5
B173: A.V.9 | C173: SUMINISTRO E INSTALACION DE ADAPTADOR PARA TIERRA 15 KV, 200A, CAL 1/0 AWG MARCA CHARDON, NORMA LAPEM-CFE, INCLUYE MATERIAL DE INSTALACION, HERRAMIENTAS, MANO DE OBRA Y TODO LO NECESARIO PARA SU CORRECTA EJECUCIÓN. | D173: PZA | E173: 5
B174: A.V.10 | C174: SUMINISTRO E INSTALACIÓN DE BOQUILLA ESTACIONARIA SENCILLA CLASE 15 KV, 200 A, MARCA ELASTIMOLD, NORMA LAPEM-CFE. INCLUYE MATERIAL DE INSTALACIÓN, HERRAMIENTAS, MANO DE OBRA Y TODO LO NECESARIO PARA SU CORRECTA EJECUCIÓN. | D174: PZA | E174: 3
B175: A.V.11 | C175: SUMINISTRO E INSTALACIÓN DE TAPÓN AISLADO OCC, CLASE 15 KV, 200 A, APROBACION LAPEM-CFE. INCLUYE MATERIAL DE INSTALACIÓN, HERRAMIENTAS, MANO DE OBRA Y TODO LO NECESARIO PARA SU CORRECTA EJECUCIÓN. | D175: PZA | E175: 7
B176: A.V.12 | C176: SUMINISTRO E INSTALACIÓN DE PUESTA A TIERRA CON VARILLA DE TIERRA PROTOCOLIZADA POR CFE CFE56100.16, CONDUCTOR DE COBRE DESNUDO TEMPLE SEMIDURO CAL 4 AWG Y SU CONEXION.INCLUYE HERRAMIENTA, MANO DE OBRA Y TODO LO NECESARIO PARA SU CORRECTA EJECUCIÓN. | D176: PZA | E176: 1
B177: A.V.13 | C177: SUMINISTRO E INSTALACION DE CORREDERA DE LAMINA GALVANIZADA 0.60 MTS CON PROTOCOLO CFE 2T400-48, INCLUYE: ACCESORIOS DE INSTALACIÓN, HERRAMIENTA MANO DE OBRA Y TODO LO NECESARIO PARA SU CORRECTA EJECUCIÓN. | D177: PZA | E177: 4
B178: A.V.14 | C178: SUMINISTRO E INSTALACIÓN DE MENSULAS GALVANIZADA 0.25 MTRS CON PROTOCOLO CFE2D100-17 INCLUYE: ACCESORIOS DE INSTALACIÓN, HERRAMIENTA MANO DE OBRA Y TODO LO NECESARIO PARA SU CORRECTA EJECUCIÓN. | D178: PZA | E178: 12
B179: A.V.15 | C179: SUMINISTRO E INSTALACIÓN DE AISLADORES PARA CONDUCTORES ELECTRICOS DE NEOPRENO CON SIGLA 3. INCLUYE: ACCESORIOS DE INSTALACIÓN, HERRAMIENTA MANO DE OBRA Y TODO LO NECESARIO PARA SU CORRECTA EJECUCIÓN. | D179: PZA | E179: 36
C180: OBRA CIVIL
B181: A.V.16 | C181: SUMINISTROS Y CONSTRUCCIÓN DE BANCO DE DUCTOS TIPO P4B, PRIMARIO 4 CANALIZACIONES 3", POLIETILENO DE ALTA DENSIDAD CORRUGADO (PADC), INCLUYE EXCAVACIÓN TENDIDO DE DUCTOS, RELLENADO Y COMPACTADO, CAMA DE ARENA (EN CASO DE SER NECESARIO), MANO DE OBRA, HERRAMIENTA, MAQUINARIA Y TODO LO NECESARIO PARA SU CORRECTA EJECUCIÓN. | D181: ML | E181: 167
B182: A.V.17 | C182: SUMINISTROS Y CONSTRUCCIÓN DE BANCO DE DUCTOS TIPO P4B/S3B, PRIMARIO 4 CANALIZACIONES 3"+ SECUNDARIO 3 CANALIZACIONES 3" POLIETILENO DE ALTA DENSIDAD CORRUGADO (PADC) EN BANQUETA, INCLUYE EXCAVACIÓN TENDIDO DE DUCTOS, RELLENADO Y COMPACTACIÓN, MANO DE OBRA, HERRAMIENTA, MAQUINARIA Y TODO LO NECESARIO PARA SU CORRECTA EJECUCIÓN. | D182: ML | E182: 22
B183: A.V.18 | C183: SUMINISTROS Y CONSTRUCCIÓN DE BANCO DE DUCTOS TIPO P4B/S2B, PRIMARIO 4 CANALIZACIONES 3"+ SECUNDARIO 2 CANALIZACIONES 3" EN BANQUETA, INCLUYE EXCAVACIÓN TENDIDO DE DUCTOS, RELLENADO Y COMPACTACIÓN, MANO DE OBRA, HERRAMIENTA, MAQUINARIA Y TODO LO NECESARIO PARA SU CORRECTA EJECUCIÓN. | D183: ML | E183: 47
B184: A.V.19 | C184: SUMINISTROS Y CONSTRUCCIÓN DE BANCO DE DUCTOS TIPO P4B/S1B Y P4B/S1A, PRIMARIO 4 CANALIZACIONES 3"+ SECUNDARIO 1 CANALIZACION 3",POLIETILENO DE ALTA DENSIDAD CORRUGADO (PADC), INCLUYE EXCAVACIÓN TENDIDO DE DUCTOS, RELLENADO Y COMPACTACIÓN, MANO DE OBRA, HERRAMIENTA, MAQUINARIA Y TODO LO NECESARIO PARA SU CORRECTA EJECUCIÓN. | D184: ML | E184: 37
B185: A.V.20 | C185: SUMINISTROS Y CONSTRUCCIÓN DE BANCO DE DUCTOS TIPO P4B/A1B ,PRIMARIO 4 CANALIZACIONES 3"+ ACOMETIDA 1 CANALIZACION 2",POLIETILENO DE ALTA DENSIDAD CORRUGADO (PADC) , INCLUYE EXCAVACIÓN TENDIDO DE DUCTOS, RELLENADO Y COMPACTACIÓN, MANO DE OBRA, HERRAMIENTA, MAQUINARIA Y TODO LO NECESARIO PARA SU CORRECTA EJECUCIÓN. | D185: ML | E185: 15
B186: A.V.21 | C186: SUMINISTROS Y CONSTRUCCIÓN DE BANCO DE DUCTOS TIPO S3A (1) ,SECUNDARIO 2 CANALIZACIONES 3"+ 1 CANALIZACION 2", POLIETILENO DE ALTA DENSIDAD CORRUGADO (PADC), INCLUYE EXCAVACIÓN TENDIDO DE DUCTOS, RELLENADO Y COMPACTACIÓN, MANO DE OBRA, HERRAMIENTA, MAQUINARIA Y TODO LO NECESARIO PARA SU CORRECTA EJECUCIÓN. | D186: ML | E186: 10
B187: A.V.22 | C187: SUMINISTROS Y CONSTRUCCIÓN DE BANCO DE DUCTOS TIPO S2B (1) Y A2B (1), 2 CANALIZACION 3"+ 2 CANALIZACIÓNES 2", POLIETILENO DE ALTA DENSIDAD CORRUGADO (PADC), INCLUYE EXCAVACIÓN, TENDIDO DE DUCTOS, CINTA "PELIGRO ALTA TENSION", RELLENADO Y COMPACTACIÓN, MANO DE OBRA, HERRAMIENTA, MAQUINARIA Y TODO LO NECESARIO PARA SU CORRECTA EJECUCIÓN. | D187: ML | E187: 65
B188: A.V.23 | C188: SUMINISTROS Y CONSTRUCCIÓN DE BANCO DE DUCTOS TIPO S1B (1), S1A Y A1B (1),1 CANALIZACIONES 3",POLIETILENO DE ALTA DENSIDAD CORRUGADO (PADC), INCLUYE EXCAVACIÓN TENDIDO DE DUCTOS, CINTA "PELIGRO ALTA TENSION", RELLENADO Y COMPACTACIÓN, MANO DE OBRA, HERRAMIENTA, MAQUINARIA Y TODO LO NECESARIO PARA SU CORRECTA EJECUCIÓN. | D188: ML | E188: 91
B189: A.V.24 | C189: SUMINISTROS Y CONSTRUCCIÓN DE BANCO DUCTOS TIPO S1B, A1B Y A1A ,1 CANALIZACION 2", POLIETILENO DE ALTA DENSIDAD CORRUGADO (PADC), INCLUYE EXCAVACIÓN TENDIDO DE DUCTOS, CINTA "PELIGRO ALTA TENSION", RELLENADO Y COMPACTACIÓN, MANO DE OBRA, HERRAMIENTA, MAQUINARIA Y TODO LO NECESARIO PARA SU CORRECTA EJECUCIÓN. | D189: ML | E189: 219
B190: A.V.25 | C190: SUMINISTROS Y CONSTRUCCIÓN DE BANCO DE DUCTOS TIPO A4B, ACOMETIDA 4 CANALIZACIONES 2", POLIETILENO DE ALTA DENSIDAD CORRUGADO (PADC) EN BANQUETA, INCLUYE EXCAVACIÓN TENDIDO DE DUCTOS, CINTA "PELIGRO ALTA TENSION", RELLENADO Y COMPACTACIÓN, MANO DE OBRA, HERRAMIENTA, MAQUINARIA Y TODO LO NECESARIO PARA SU CORRECTA EJECUCIÓN. | D190: ML | E190: 2
B191: A.V.26 | C191: SUMINISTROS Y CONSTRUCCIÓN DE BANCO DE DUCTOS TIPO A3B, ACOMETIDA 3 CANALIZACIONES 2", POLIETILENO DE ALTA DENSIDAD CORRUGADO (PADC) EN BANQUETA, INCLUYE EXCAVACIÓN TENDIDO DE DUCTOS, CINTA "PELIGRO ALTA TENSION", RELLENADO Y COMPACTACIÓN, MANO DE OBRA, HERRAMIENTA, MAQUINARIA Y TODO LO NECESARIO PARA SU CORRECTA EJECUCIÓN. | D191: ML | E191: 14
B192: A.V.27 | C192: SUMINISTROS Y CONSTRUCCIÓN DE BANCO DE DUCTOS TIPO A2B, ACOMETIDA 2 CANALIZACIONES 2", POLIETILENO DE ALTA DENSIDAD CORRUGADO (PADC) EN BANQUETA, INCLUYE EXCAVACIÓN TENDIDO DE DUCTOS, RELLENADO Y COMPACTACIÓN, MANO DE OBRA, HERRAMIENTA, MAQUINARIA Y TODO LO NECESARIO PARA SU CORRECTA EJECUCIÓN. | D192: ML | E192: 20
B193: A.V.28 | C193: SUMINISTRO E INSTALACIÓN DE REGISTRO MEDIA TENSIÓN EN BANQUETA TIPO 3 CON BASE PARA TRANSFORMADOR MONOFASICO NORMA CFE-BTMRMTB3, INCLUYE: ACARREOS, EXCAVACIÓN, RELLENADO Y COMPACTADO, MANO DE OBRA, HERRAMIENTAS, ACCESORIOS DE MOTAJE Y TODO LO NECESARIO PARA SU CORRECTA EJECUCIÓN. | D193: PZA | E193: 5
B194: A.V.29 | C194: SUMINISTRO E INSTALACIÓN DE REGISTRO PARA BAJA TENSIÓN EN BANQUETA TIPO 1 (RBTB-1), INCLUYE ACARREOS, MANO DE OBRA, HERRAMIENTAS, ACCESORIOS DE MONTAJE Y TODO LO NECESARIO PARA SU CORRECTA EJECUCIÓN | D194: PZA | E194: 16
C195: OBRA ELECTRICA
B196: A.V.30 | C196: SUMINISTRO E INSTALACION DE CORREDERA DE LAMINA GALVANIZADA 0.60 MTS CON PROTOCOLO CFE 2T400-48, INCLUYE: ACCESORIOS DE INSTALACIÓN, HERRAMIENTA MANO DE OBRA Y TODO LO NECESARIO PARA SU CORRECTA EJECUCIÓN. | D196: PZA | E196: 20
B197: A.V.31 | C197: SUMINISTRO E INSTALACIÓN DE MENSULAS GALVANIZADA 0.25 MTRS CON PROTOCOLO CFE2D100-17 INCLUYE: ACCESORIOS DE INSTALACIÓN, HERRAMIENTA MANO DE OBRA Y TODO LO NECESARIO PARA SU CORRECTA EJECUCIÓN. | D197: PZA | E197: 60
B198: A.V.32 | C198: SUMINISTRO E INSTALACIÓN DE AISLADORES PARA CONDUCTORES ELECTRICOS DE NEOPRENO CON PROTOCOLO, INCLUYE: ACCESORIOS DE INSTALACIÓN, HERRAMIENTA MANO DE OBRA Y TODO LO NECESARIO PARA SU CORRECTA EJECUCIÓN. | D198: PZA | E198: 180
B199: A.V.33 | C199: SUMINISTRO E INSTALACIÓN DE ELECTRODO DE PUESTA A TIERRA EN REGISTROS PARA TRANSFORMADOR CON VARILLA DE TIERRA PROTOCOLIZADA POR CFE CFE56100.16,INCLUYE HERRAMIENTA, MANO DE OBRA Y TODO LO NECESARIO PARA SU CORRECTA EJECUCIÓN. | D199: PZA | E199: 25
B200: A.V.34 | C200: SUMINISTRO E INSTALACIÓN DE CONDUCTOR DE COBRE DESNUDO CAL. 1/0 AWG PARA EL SISTEMA DE TIERRA, INCLUYE: EXCAVACION TENDIDO DE CONDUCTOR, RELLENADO Y COMPACTADO, HERRAMIENTA, MANO DE OBRA Y TODO LO NECESARIO PARA SU CORRECTA EJECUCIÓN. | D200: ML | E200: 75
B201: A.V.35 | C201: SUMINISTRO Y EJECUCION DE SOLDADURA EXOTERMICA #90, INCLUYE: PREPARACION DE ELEMENTOS DE SISTEMA DE TIERRA ( VARILLA Y CONDUCTOR) REALIZACION DE MANIOBRAS DE SOLDADURA, CARTUCHO DE SOLDADURA EXOTERMICA #90, MANO DE OBRA. | D201: PZA | E201: 30
B202: A.V.36 | C202: SUMINISTRO DE MOLDE PARA SOLDADURA EXOTERMICA, INCLUYE MOLDE PARA VARILLA EN "T" PARA CABLE CAL. 1/0 AWG, MOLDE PARA CABLE CAL. 1/0, PINZAS PARA MOLDES Y CHISPERO. | D202: PZA | E202: 1
B203: A.V.37 | C203: SUMINISTRO E INSTALACIÓN DE ELECTRODO DE PUESTA A TIERRA EN REGISTROS DE BAJA TENSIÓN PARA TERMINACIÓN DE CIRCUITO CON VARILLA DE TIERRA PROTOCOLIZADA POR CFE CFE56100.16,INCLUYE HERRAMIENTA, TERMINAL PARA VARILLA DE TIERRA REFORZADO, MANO DE OBRA Y TODO LO NECESARIO PARA SU CORRECTA EJECUCIÓN. | D203: PZA | E203: 13
B204: A.V.38 | C204: SUMINISTRO E INSTALACIÓN DE TRANSFORMADOR MONOFASICO TIPO PEDESTAL 13200YT/7620 - 240/120V, 100 KVA, NORMA K0000, MARCA PROLEC, INCLUYE ACARREOS, ACCESORIOS DE MONTAJE, MANO DE OBRA, HERRAMIENTA Y TODO LO NECESARIO PARA SU CORRECTA EJECUCIÓN. | D204: PZA | E204: 4
... 320 more rows
